Workbook

Sheet Language

Sheet Exhibit 1 (hidden)
A2: HOW DEBT INCREASES RETURN (ROE) | G2: (Assumptions in green)
C4: Without Debt | H4: With Debt
A5: Year ---------> | B5: 0 | C5: 1 | D5: 2 | E5: 3 | G5: 0 | H5: 1 | I5: 2 | J5: 3
A6: EBIT (10% of assets) | C6: =C16*C12 -> 10 | D6: =D16*D12 -> 10 | E6: =E16*E12 -> 10 | H6: =H16*H12 -> 10 | I6: =I16*I12 -> 10 | J6: =J16*J12 -> 10
A7: Financial expenses (6% of debt) | C7: =6%*C13 -> 0 | D7: =6%*D13 -> 0 | E7: =6%*E13 -> 0 | H7: =6%*G13 -> 3 | I7: =6%*H13 -> 3 | J7: =6%*I13 -> 3
A8: EBT, earnings before taxes | C8: =C6-C7 -> 10 | D8: =D6-D7 -> 10 | E8: =E6-E7 -> 10 | H8: =H6-H7 -> 7 | I8: =I6-I7 -> 7 | J8: =J6-J7 -> 7
A9: Taxes (t= 30%) | C9: =0.3*C8 -> 3 | D9: =0.3*D8 -> 3 | E9: =0.3*E8 -> 3 | H9: =0.3*H8 -> 2.1 | I9: =0.3*I8 -> 2.1 | J9: =0.3*J8 -> 2.1
A10: NI, Net Income | C10: =C8-C9 -> 7 | D10: =D8-D9 -> 7 | E10: =E8-E9 -> 7 | H10: =H8-H9 -> 4.9 | I10: =I8-I9 -> 4.9 | J10: =J8-J9 -> 4.9
A12: Net assets (NA) | B12: 100 | C12: =B12 -> 100 | D12: 100 | E12: 100 | G12: 100 | H12: =G12 -> 100 | I12: =H12 -> 100 | J12: =I12 -> 100
A13: Debt (D) | B13: 0 | C13: 0 | D13: 0 | E13: =D13 -> 0 | G13: 50 | H13: =G13 -> 50 | I13: =H13 -> 50 | J13: 0
A14: Equity (E) | B14: =B12-B13 -> 100 | C14: 100 | D14: 100 | E14: =D14 -> 100 | G14: =G12-G13 -> 50 | H14: =G14 -> 50 | I14: =H14 -> 50 | J14: =I14 -> 50
A16: ROA (EBIT / net assets) | C16: 0.1 | D16: =C16 -> 0.1 | E16: =D16 -> 0.1 | H16: 0.1 | I16: =H16 -> 0.1 | J16: =I16 -> 0.1
A17: ROE (NI / Equity previous year) | C17: =C10/B14 -> 0.07 | D17: =D10/C14 -> 0.07 | E17: =E10/D14 -> 0.07 | H17: =H10/G14 -> 0.098 | I17: =I10/H14 -> 0.098 | J17: =J10/I14 -> 0.098
A19: CASH FLOWS OF DEBT
G20: 0 | H20: 1 | I20: 2 | J20: 3
A21: Interest payment and fees | G21: -0.5 | H21: =-H7 -> -3 | I21: =-I7 -> -3 | J21: =-J7 -> -3
A22: Principal | G22: 50 | H22: 0 | I22: 0 | J22: -50
A23: CF debt (before taxes) | G23: =G21+G22 -> 49.5 | H23: =H21+H22 -> -3 | I23: =I21+I22 -> -3 | J23: =J21+J22 -> -53
A24: IRR of Debt or Cost of debt before taxes = | D24: =IRR(G23:J23) -> 0.06376720215
A26: AND HOW DEBT ALSO INCREASES RISK (Variability of ROE)
D28: Without Debt | I28: With Debt
A29: Year ---------> | C29: Bad | D29: Normal | E29: Good | H29: Bad | I29: Normal | J29: Good
A30: EBIT | C30: 5 | D30: 10 | E30: 15 | H30: 5 | I30: 10 | J30: 15
A31: Financial expenses (6% of debt) | C31: 0 | D31: 0 | E31: 0 | H31: 3 | I31: 3 | J31: 3
A32: EBT | C32: 5 | D32: 10 | E32: 15 | H32: 2 | I32: 7 | J32: 12
A33: Taxes (t= 30%) | C33: =0.3*C32 -> 1.5 | D33: =0.3*D32 -> 3 | E33: =0.3*E32 -> 4.5 | H33: =0.3*H32 -> 0.6 | I33: =0.3*I32 -> 2.1 | J33: =0.3*J32 -> 3.6
A34: Net Income | C34: =C32-C33 -> 3.5 | D34: =D32-D33 -> 7 | E34: =E32-E33 -> 10.5 | H34: =H32-H33 -> 1.4 | I34: =I32-I33 -> 4.9 | J34: =J32-J33 -> 8.4
A36: Equity (E) | C36: 100 | D36: 100 | E36: 100 | H36: 50 | I36: 50 | J36: 50
A38: ROE (Net Income / Equity) | C38: =C34/C36 -> 0.035 | D38: =D34/D36 -> 0.07 | E38: =E34/E36 -> 0.105 | H38: =H34/H36 -> 0.028 | I38: =I34/I36 -> 0.098 | J38: =J34/J36 -> 0.168
A40: WACC CALCULATION
A42: For year 1. | D42: W | E42: K | H42: W x K
A43: Debt (after taxes) | B43: 50 | D43: =B43/B45 -> 0.5 | E43: =D24*(1-0.3) -> 0.0446370415 | H43: =D43*E43 -> 0.02231852075
A44: Equity | B44: 50 | D44: =B44/B45 -> 0.5 | E44: 0.14 | H44: =D44*E44 -> 0.07
A45: Total financing | B45: =B43+B44 -> 100 | D45: =D43+D44 -> 1 | H45: =H43+H44 -> 0.09231852075

Sheet Exh 1
D1: Exhibit 1 Example of Debt vs Equity
A3: HOW DEBT INCREASES RETURN (ROE) | G3: (Assumptions in green)
C5: Without Debt | H5: With Debt
A6: Year ---------> | B6: 0 | C6: 1 | D6: 2 | E6: 3 | G6: 0 | H6: 1 | I6: 2 | J6: 3
A7: EBIT (10% of assets) | C7: =C17*C13 -> 10 | D7: =D17*D13 -> 10 | E7: =E17*E13 -> 10 | H7: =H17*H13 -> 10 | I7: =I17*I13 -> 10 | J7: =J17*J13 -> 10
A8: Financial expenses (6% of debt) | C8: =6%*C14 -> 0 | D8: =6%*D14 -> 0 | E8: =6%*E14 -> 0 | H8: =$H$19*G14 -> 3 | I8: =$H$19*H14 -> 3 | J8: 3
A9: EBT, earnings before taxes | C9: =C7-C8 -> 10 | D9: =D7-D8 -> 10 | E9: =E7-E8 -> 10 | H9: =H7-H8 -> 7 | I9: =I7-I8 -> 7 | J9: =J7-J8 -> 7
A10: Taxes (t= 30%) | C10: =0.3*C9 -> 3 | D10: =0.3*D9 -> 3 | E10: =0.3*E9 -> 3 | H10: =0.3*H9 -> 2.1 | I10: =0.3*I9 -> 2.1 | J10: =0.3*J9 -> 2.1
A11: NI, Net Income | C11: =C9-C10 -> 7 | D11: =D9-D10 -> 7 | E11: =E9-E10 -> 7 | H11: =H9-H10 -> 4.9 | I11: =I9-I10 -> 4.9 | J11: =J9-J10 -> 4.9
A13: Net assets (NA) | B13: 100 | C13: =B13 -> 100 | D13: 100 | E13: 100 | G13: 100 | H13: =G13 -> 100 | I13: =H13 -> 100 | J13: =I13 -> 100
A14: Debt (D) | B14: 0 | C14: 0 | D14: 0 | E14: =D14 -> 0 | G14: 50 | H14: =G14 -> 50 | I14: =H14 -> 50 | J14: 0
A15: Equity (E) | B15: =B13-B14 -> 100 | C15: 100 | D15: 100 | E15: =D15 -> 100 | G15: =G13-G14 -> 50 | H15: =G15 -> 50 | I15: =H15 -> 50 | J15: =I15 -> 50
A17: ROA (EBIT / net assets) | C17: 0.1 | D17: =$C$17 -> 0.1 | E17: =$C$17 -> 0.1 | H17: =$C$17 -> 0.1 | I17: =$C$17 -> 0.1 | J17: =I17 -> 0.1
A18: ROE (NI / Equity previous year) | C18: =C11/B15 -> 0.07 | D18: =D11/C15 -> 0.07 | E18: =E11/D15 -> 0.07 | H18: =H11/G15 -> 0.098 | I18: =I11/H15 -> 0.098 | J18: =J11/I15 -> 0.098
A19: Interest rate | H19: 0.06
A21: CASH FLOWS OF DEBT | G21: 0 | H21: 1 | I21: 2 | J21: 3
A22: Interest payment and fees | G22: -0.5 | H22: =-H8 -> -3 | I22: =-I8 -> -3 | J22: =-J8 -> -3
A23: Principal | G23: 50 | H23: 0 | I23: 0 | J23: -50
A24: CF debt (before taxes) | G24: =G22+G23 -> 49.5 | H24: =H22+H23 -> -3 | I24: =I22+I23 -> -3 | J24: =J22+J23 -> -53
A25: IRR of Debt or Cost of debt before taxes = | D25: =IRR(G24:J24) -> 0.06376720215
A28: AND HOW DEBT ALSO INCREASES RISK (Variability of ROE)
D30: Without Debt | I30: With Debt
A31: Year ---------> | C31: Bad | D31: Normal | E31: Good | H31: Bad | I31: Normal | J31: Good
A32: EBIT | C32: 0 | D32: 10 | E32: 20 | H32: =C32 -> 0 | I32: =D32 -> 10 | J32: 20
A33: Financial expenses (6% of debt) | C33: 0 | D33: 0 | E33: 0 | H33: =H8 -> 3 | I33: =I8 -> 3 | J33: 3
A34: EBT | C34: 5 | D34: 10 | E34: 15 | H34: 2 | I34: 7 | J34: 12
A35: Taxes (t= 30%) | C35: =0.3*C34 -> 1.5 | D35: =0.3*D34 -> 3 | E35: =0.3*E34 -> 4.5 | H35: =0.3*H34 -> 0.6 | I35: =0.3*I34 -> 2.1 | J35: =0.3*J34 -> 3.6
A36: Net Income | C36: =C34-C35 -> 3.5 | D36: =D34-D35 -> 7 | E36: =E34-E35 -> 10.5 | H36: =H34-H35 -> 1.4 | I36: =I34-I35 -> 4.9 | J36: =J34-J35 -> 8.4
A38: Equity (E) | C38: 100 | D38: 100 | E38: 100 | H38: 50 | I38: 50 | J38: 50
A40: ROE (Net Income / Equity) | C40: =C36/C38 -> 0.035 | D40: =D36/D38 -> 0.07 | E40: =E36/E38 -> 0.105 | H40: =H36/H38 -> 0.028 | I40: =I36/I38 -> 0.098 | J40: =J36/J38 -> 0.168
A42: WACC CALCULATION
A44: For year 1. | D44: W | E44: Cost (K) | H44: W x K
A45: Debt (after taxes) | B45: 50 | D45: =B45/B47 -> 0.5 | E45: =D25*(1-0.3) -> 0.0446370415 | H45: =D45*E45 -> 0.02231852075
A46: Equity | B46: 50 | D46: =B46/B47 -> 0.5 | E46: 0.14 | H46: =D46*E46 -> 0.07
A47: Debt + equity | B47: =B45+B46 -> 100 | D47: =D45+D46 -> 1 | H47: =H45+H46 -> 0.09231852075
J49: © E.M. Abascal 2023

Sheet Anex 1 (hidden)
D1: Anexo 1 Ejemplo de Deuda vs Capital
A3: COMO LA DEUDA AUMENTA LA RENTABILIDAD (el ROE) | G3: (Hipótesis en verde)
C5: Sin deuda | H5: Con deuda
A6: Año ---------> | B6: 0 | C6: 1 | D6: 2 | E6: 3 | G6: 0 | H6: 1 | I6: 2 | J6: 3
A7: EBIT (10% del activo) | C7: =C17*C13 -> 10 | D7: =D17*D13 -> 10 | E7: =E17*E13 -> 10 | H7: =H17*H13 -> 10 | I7: =I17*I13 -> 10 | J7: =J17*J13 -> 10
A8: Gastos financieros (6% de la deuda) | C8: =6%*C14 -> 0 | D8: =6%*D14 -> 0 | E8: =6%*E14 -> 0 | H8: =$H$19*G14 -> 3 | I8: =$H$19*H14 -> 3 | J8: 3
A9: BAT, Beneficio antes de impuestos | C9: =C7-C8 -> 10 | D9: =D7-D8 -> 10 | E9: =E7-E8 -> 10 | H9: =H7-H8 -> 7 | I9: =I7-I8 -> 7 | J9: =J7-J8 -> 7
A10: Impuestos (t = 30%) | C10: =0.3*C9 -> 3 | D10: =0.3*D9 -> 3 | E10: =0.3*E9 -> 3 | H10: =0.3*H9 -> 2.1 | I10: =0.3*I9 -> 2.1 | J10: =0.3*J9 -> 2.1
A11: BN, Beneficio neto | C11: =C9-C10 -> 7 | D11: =D9-D10 -> 7 | E11: =E9-E10 -> 7 | H11: =H9-H10 -> 4.9 | I11: =I9-I10 -> 4.9 | J11: =J9-J10 -> 4.9
A13: Activo neto (AN) | B13: 100 | C13: =B13 -> 100 | D13: 100 | E13: 100 | G13: 100 | H13: =G13 -> 100 | I13: =H13 -> 100 | J13: =I13 -> 100
A14: Deuda (D) | B14: 0 | C14: 0 | D14: 0 | E14: =D14 -> 0 | G14: 50 | H14: =G14 -> 50 | I14: =H14 -> 50 | J14: 0
A15: Equity (E) o Patrimonio | B15: =B13-B14 -> 100 | C15: 100 | D15: 100 | E15: =D15 -> 100 | G15: =G13-G14 -> 50 | H15: =G15 -> 50 | I15: =H15 -> 50 | J15: =I15 -> 50
A17: RONA (EBIT / AN) | C17: 0.1 | D17: =$C$17 -> 0.1 | E17: =$C$17 -> 0.1 | H17: =$C$17 -> 0.1 | I17: =$C$17 -> 0.1 | J17: =I17 -> 0.1
A18: ROE = BN / RP año anterior | C18: =C11/B15 -> 0.07 | D18: =D11/C15 -> 0.07 | E18: =E11/D15 -> 0.07 | H18: =H11/G15 -> 0.098 | I18: =I11/H15 -> 0.098 | J18: =J11/I15 -> 0.098
A19: Tipo de interés | H19: 0.06
A21: CASH FLOWS DE LA DEUDA | G21: 0 | H21: 1 | I21: 2 | J21: 3
A22: Intereses y comisiones | G22: -0.5 | H22: =-H8 -> -3 | I22: =-I8 -> -3 | J22: =-J8 -> -3
A23: Principal | G23: 50 | H23: 0 | I23: 0 | J23: -50
A24: CF de la Deuda (antes de impuestos) | G24: =G22+G23 -> 49.5 | H24: =H22+H23 -> -3 | I24: =I22+I23 -> -3 | J24: =J22+J23 -> -53
A25: TIR de la Deuda, antes de impuestos = | D25: =IRR(G24:J24) -> 0.06376720215
A28: Y COMO LA DEUDA AUMENTA TAMBIÉN EL RIESGO (la variabilidad de la ROE)
D30: Sin deuda | I30: Con deuda
A31: Año ---------> | C31: Malo | D31: Normal | E31: Bueno | H31: Malo | I31: Normal | J31: Bueno
A32: EBIT (10% del activo) | C32: 0 | D32: 10 | E32: 20 | H32: =C32 -> 0 | I32: =D32 -> 10 | J32: 20
A33: Gastos financieros (6% de la deuda) | C33: 0 | D33: 0 | E33: 0 | H33: =H8 -> 3 | I33: =I8 -> 3 | J33: 3
A34: BAT, Beneficio antes de impuestos | C34: 5 | D34: 10 | E34: 15 | H34: 2 | I34: 7 | J34: 12
A35: Impuestos (t = 30%) | C35: =0.3*C34 -> 1.5 | D35: =0.3*D34 -> 3 | E35: =0.3*E34 -> 4.5 | H35: =0.3*H34 -> 0.6 | I35: =0.3*I34 -> 2.1 | J35: =0.3*J34 -> 3.6
A36: BN, Beneficio neto | C36: =C34-C35 -> 3.5 | D36: =D34-D35 -> 7 | E36: =E34-E35 -> 10.5 | H36: =H34-H35 -> 1.4 | I36: =I34-I35 -> 4.9 | J36: =J34-J35 -> 8.4
A38: Equity o Capital (E) | C38: 100 | D38: 100 | E38: 100 | H38: 50 | I38: 50 | J38: 50
A40: ROE (Benef. / Capital) | C40: =C36/C38 -> 0.035 | D40: =D36/D38 -> 0.07 | E40: =E36/E38 -> 0.105 | H40: =H36/H38 -> 0.028 | I40: =I36/I38 -> 0.098 | J40: =J36/J38 -> 0.168
A42: CALCULO DEL WACC
A44: Cálculo para el año 1 y 2. | D44: W | E44: Coste (K) | H44: W x K
A45: Deuda (desp de impuestos) | B45: 50 | D45: =B45/B47 -> 0.5 | E45: =D25*(1-0.3) -> 0.0446370415 | H45: =D45*E45 -> 0.02231852075
A46: Capital o equity | B46: 50 | D46: =B46/B47 -> 0.5 | E46: 0.14 | H46: =D46*E46 -> 0.07
A47: Deuda + equity | B47: =B45+B46 -> 100 | D47: =D45+D46 -> 1 | H47: =H45+H46 -> 0.09231852075
J49: © E.M. Abascal 2023

Sheet Anex 1 PT (hidden)
D1: Anexo 1 Exemplo de Divida vs Capital
A3: COMO A DÍVIDA AUMENTA A RENTABILIDADE (ROE) | G3: (Hipóteses em negrito verde)
C5: Sem dívida | H5: Com dívida
A6: Ano ---------> | B6: 0 | C6: 1 | D6: 2 | E6: 3 | G6: 0 | H6: 1 | I6: 2 | J6: 3
A7: EBIT (10% do ativo) | C7: =C17*C13 -> 10 | D7: =D17*D13 -> 10 | E7: =E17*E13 -> 10 | H7: =H17*H13 -> 10 | I7: =I17*I13 -> 10 | J7: =J17*J13 -> 10
A8: Despesas financeiras (6% da dívida) | C8: =6%*C14 -> 0 | D8: =6%*D14 -> 0 | E8: =6%*E14 -> 0 | H8: =$H$19*G14 -> 3 | I8: =$H$19*H14 -> 3 | J8: 3
A9: EBT, Lucro antes dos impostos | C9: =C7-C8 -> 10 | D9: =D7-D8 -> 10 | E9: =E7-E8 -> 10 | H9: =H7-H8 -> 7 | I9: =I7-I8 -> 7 | J9: =J7-J8 -> 7
A10: Impostos (t = 30%) | C10: =0.3*C9 -> 3 | D10: =0.3*D9 -> 3 | E10: =0.3*E9 -> 3 | H10: =0.3*H9 -> 2.1 | I10: =0.3*I9 -> 2.1 | J10: =0.3*J9 -> 2.1
A11: LL, Lucro líquido | C11: =C9-C10 -> 7 | D11: =D9-D10 -> 7 | E11: =E9-E10 -> 7 | H11: =H9-H10 -> 4.9 | I11: =I9-I10 -> 4.9 | J11: =J9-J10 -> 4.9
A13: Ativo líquido (AL) | B13: 100 | C13: =B13 -> 100 | D13: 100 | E13: 100 | G13: 100 | H13: =G13 -> 100 | I13: =H13 -> 100 | J13: =I13 -> 100
A14: Dívida (D) | B14: 0 | C14: 0 | D14: 0 | E14: =D14 -> 0 | G14: 50 | H14: =G14 -> 50 | I14: =H14 -> 50 | J14: 0
A15: Recursos próprios (RP) | B15: =B13-B14 -> 100 | C15: 100 | D15: 100 | E15: =D15 -> 100 | G15: =G13-G14 -> 50 | H15: =G15 -> 50 | I15: =H15 -> 50 | J15: =I15 -> 50
A17: ROA (EBIT / AL) | C17: 0.1 | D17: =$C$17 -> 0.1 | E17: =$C$17 -> 0.1 | H17: =$C$17 -> 0.1 | I17: =$C$17 -> 0.1 | J17: =I17 -> 0.1
A18: ROE = LL / RP ano anterior | C18: =C11/B15 -> 0.07 | D18: =D11/C15 -> 0.07 | E18: =E11/D15 -> 0.07 | H18: =H11/G15 -> 0.098 | I18: =I11/H15 -> 0.098 | J18: =J11/I15 -> 0.098
A19: Juros | H19: 0.06
A21: CASH FLOWS DA DÍVIDA | G21: 0 | H21: 1 | I21: 2 | J21: 3
A22: Juros e comissões | G22: -0.5 | H22: =-H8 -> -3 | I22: =-I8 -> -3 | J22: =-J8 -> -3
A23: Principal | G23: 50 | H23: 0 | I23: 0 | J23: -50
A24: CF da Dívida (antes de impostos) | G24: =G22+G23 -> 49.5 | H24: =H22+H23 -> -3 | I24: =I22+I23 -> -3 | J24: =J22+J23 -> -53
A25: TIR da dívida, antes de impostos = | D25: =IRR(G24:J24) -> 0.06376720215
A28: E COMO A DÍVIDA AUMENTA TAMBÉM O RISCO (a variabilidade do ROE)
D30: Sem dívida | I30: Com dívida
A31: Ano ---------> | C31: Pior | D31: Normal | E31: Melhor | H31: Pior | I31: Normal | J31: Melhor
A32: EBIT (10% do ativo) | C32: 0 | D32: 10 | E32: 20 | H32: =C32 -> 0 | I32: =D32 -> 10 | J32: 20
A33: Despesas financeiras (6% de la deuda) | C33: 0 | D33: 0 | E33: 0 | H33: =H8 -> 3 | I33: =I8 -> 3 | J33: 3
A34: EBT, Lucro antes dos impostos | C34: 5 | D34: 10 | E34: 15 | H34: 2 | I34: 7 | J34: 12
A35: Impostos (t = 30%) | C35: =0.3*C34 -> 1.5 | D35: =0.3*D34 -> 3 | E35: =0.3*E34 -> 4.5 | H35: =0.3*H34 -> 0.6 | I35: =0.3*I34 -> 2.1 | J35: =0.3*J34 -> 3.6
A36: LL, Lucro líquido | C36: =C34-C35 -> 3.5 | D36: =D34-D35 -> 7 | E36: =E34-E35 -> 10.5 | H36: =H34-H35 -> 1.4 | I36: =I34-I35 -> 4.9 | J36: =J34-J35 -> 8.4
A38: Equity ou Capital (E) | C38: 100 | D38: 100 | E38: 100 | H38: 50 | I38: 50 | J38: 50
A40: ROE (Lucro Líq. / Capital) | C40: =C36/C38 -> 0.035 | D40: =D36/D38 -> 0.07 | E40: =E36/E38 -> 0.105 | H40: =H36/H38 -> 0.028 | I40: =I36/I38 -> 0.098 | J40: =J36/J38 -> 0.168
A42: CÁLCULO DO WACC
A44: Cálculo para o ano 1 e 2 | D44: W | E44: Custo (K) | H44: W x K
A45: Dívida (depois de impostos) | B45: 50 | D45: =B45/B47 -> 0.5 | E45: =D25*(1-0.3) -> 0.0446370415 | H45: =D45*E45 -> 0.02231852075
A46: Capital | B46: 50 | D46: =B46/B47 -> 0.5 | E46: 0.14 | H46: =D46*E46 -> 0.07
A47: Divida + Equity | B47: =B45+B46 -> 100 | D47: =D45+D46 -> 1 | H47: =H45+H46 -> 0.09231852075
J49: © E.M. Abascal 2023

Sheet Questions
B1: Chapter 9. Self-assessment questions
B2: Answer the following questions. Write your answers in column C. T or F (true or false).
B3: Check your answers by clicking on the 2 with box in the upper left corner; or in the cross with a box above column F.
B4: Column E will be displayed with the correct answer. If you have less than 30 points, it is recommended to review Chapter 1.
B5: Correct answer = 1 point. No response = 0 points. Wrong answer = | C5: 0
B6: © IESE. E.M. Abascal 2023. Version 26/9/23
C7: Answer | D7: Your | E7: Correct
B8: QUESTIONS | C8: T or F | D8: Points | E8: Answer
A9: 1 | B9: The cost of debt (Kd) is the IRR of the cash flows produced by debt. T or F? | D9: =IF(C9="",0,IF(C9=E9,1,$C$5)) -> 0 | E9: T
A10: =A9+1 -> 2 | B10: The cost of debt is always equal to the interest payment divided by the principal of the debt. T or F? | D10: =IF(C10="",0,IF(C10=E10,1,$C$5)) -> 0 | E10: F
A11: =A10+1 -> 3 | B11: Debt always increases the ROE. T or F? | D11: 0 | E11: F
A12: 4 | B12: Debt increases ROE only if Kd < RONA. T or F? | D12: 0 | E12: T
A13: 5 | B13: The ROE comes from two sources: RONA and leverage. T or F? | D13: 0 | E13: T
A14: 6 | B14: An increase in ROE due to debt always produces an increase in the value of the company. T or F? | D14: 0 | E14: F
A15: 7 | B15: An increase in leverage decreases the risks of the company. T or F? | D15: 0 | E15: F
A16: 8 | B16: In the long run the cost of equity is usually smaller than the cost of debt. T or F? | D16: 0 | E16: F
A17: 9 | B17: One way to measure financial risk is the EBIT/financial expenses ratio. T or F? | D17: 0 | E17: T
A18: 10 | B18: Companies with big operational risks are allowed to have more financial risks. T or F? | D18: 0 | E18: F
A19: 11 | B19: Common sense rules that you may have leverage such that you can pay the interest and principal even in bad years. T or F? | D19: 0 | E19: T
A20: 12 | B20: Business practice rules that you do not need to repay the debt because at maturity it will renewed by the bank. T or F? | D20: 0 | E20: F
A21: 13 | B21: Common sense advises that you should ask for a loan only when you are in a position of extreme necessity, not before. T or F? | D21: 0 | E21: F
A22: 14 | B22: You must always finance FA with long-term debt. T or F? | D22: 0 | E22: F
A23: 15 | B23: You should set up the maturity of your loan so that you can repay the principal. T or F? | D23: 0 | E23: T
A24: 16 | B24: If you want a ten-year loan, you will have to pay at least the prevailing interest rate on the ten-year government bond. T or F? | D24: 0 | E24: T
A25: 17 | B25: You may borrow at variable or fixed rates. T or F? | D25: 0 | E25: T
A26: 18 | B26: If you borrow in a foreign currency at a lower rate, you increase your return but you also increase your risk. T or F? | D26: 0 | E26: T
A27: 19 | B27: It makes sense to borrow in a foreign currency if you have revenue in that currency. T or F? | D27: 0 | E27: T
A28: 20 | B28: A corporate bond usually has a maturity of less than 18 months. T or F? | D28: 0 | E28: F
A29: 21 | B29: Commercial paper usually has a maturity of less than 18 months. T or F? | D29: 0 | E29: T
A30: 22 | B30: In the long run the cost of equity (Ke) is whatever return the shareholders require from the company in order to be happy and continue to hold their shares in the company. T or F? | D30: 0 | E30: T
A31: 23 | B31: The historical ROE may give an indication of your cost of equity if you are not a listed company. T or F? | D31: 0 | E31: F
A32: 24 | B32: The Ke is very similar in every industry and every country, because otherwise investors would move their money from oneindustry to another or from one country to another. T or F? | E32: F
A33: 25 | B33: The market return of the stock is always the best estimator of the Ke of a company. T or F? | D33: 0 | E33: F
A34: 26 | B34: Market return and ROE are very similar. T or F? | D34: 0 | E34: F
A35: 27 | B35: The market return of a stock is based solely on the performance of the company. T or F? | D35: 0 | E35: F
A36: 28 | B36: The CAPM states that the risk premium of a stock is a function of the risk premium of the market. T or F? | D36: 0 | E36: T
A37: 29 | B37: The risk premium is usually calculated as the market return minus the risk-free rate. T or F? | D37: 0 | E37: T
A38: 30 | B38: Aggressive stocks have a beta smaller than 1. T or F? | D38: 0 | E38: F
A39: 31 | B39: Usually, debt gives more flexibility than equity. T or F? | D39: 0 | E39: F
A40: 32 | B40: Usually, debt brings more risk than equity T or F? | D40: 0 | E40: T
A41: 33 | B41: Usually, debt is less costly than equity. T or F? | D41: 0 | E41: T
A42: 34 | B42: It is prudent to borrow in the currency with the lowest rates. T or F? | D42: 0 | E42: F
A43: 35 | B43: For all practical purposes you may assume that required return is the same as expected return and historical return. T or F? | D43: 0 | E43: F
A44: 36 | B44: The current assets must always be financed with short-term debt and the FA with long-term debt. | D44: 0 | E44: F
A45: 37 | B45: A long-term loan is always more expensive than a short-term loan, as it has more risk, due to the long term. | D45: 0 | E45: F
A46: 38 | B46: A consumer loan is always more expensive than a mortgage because it has more risk | D46: 0 | E46: T
A47: 39 | B47: If a company seeks financing, it is normal for it to increase capital | D47: 0 | E47: F
A48: 40 | B48: It can be assumed that the cost of capital is the historical ROE that the company has had. | D48: 0 | E48: F
B51: TOTAL GRADE OBTAINED | D51: =SUM(D9:D48) -> 0
B52: Highest possible rating | D52: 40

Sheet Preguntas (hidden)
B1: Cap 9. Prguntas de autoevaluación
B2: Contesta el siguiente cuestionario. Escribe tus respuestas en la columna C. V o F (verdadero o falso).
B3: Comprueba tus respuestas pinchando en el 2 con recuadro de la esquina superior izquierda; o en la cruz con recuadro encima de la columna F. | G3: 1 | H3: V | I3: 6 | J3: F | K3: 11 | L3: V | M3: 16 | N3: V | O3: 21 | P3: V | Q3: 26 | R3: F | S3: 31 | T3: F | U3: 36 | V3: F
B4: Se desplegará la columna E con la respuesta correcta. Si tienes menos de 30 puntos se recomienda repasar el Cap 1. | G4: 2 | H4: F | I4: 7 | J4: F | K4: 12 | L4: F | M4: 17 | N4: V | O4: 22 | P4: V | Q4: 27 | R4: F | S4: 32 | T4: V | U4: 37 | V4: F
B5: Respuesta correcta = 1 punto. No respuesta = 0 puntos. Respuesta incorrecta = | C5: 0 | G5: 3 | H5: F | I5: 8 | J5: F | K5: 13 | L5: F | M5: 18 | N5: V | O5: 23 | P5: F | Q5: 28 | R5: V | S5: 33 | T5: V | U5: 38 | V5: V
B6: © IESE. E.M. Abascal 2023. Versión 26/9/23 | G6: 4 | H6: V | I6: 9 | J6: V | K6: 14 | L6: F | M6: 19 | N6: V | O6: 24 | P6: F | Q6: 29 | R6: V | S6: 34 | T6: F | U6: 39 | V6: F
C7: Respuestas | D7: Calificación | E7: Respuesta | G7: 5 | H7: V | I7: 10 | J7: F | K7: 15 | L7: V | M7: 20 | N7: F | O7: 25 | P7: F | Q7: 30 | R7: F | S7: 35 | T7: F | U7: 40 | V7: F
B8: PREGUNTAS | C8: V o F | D8: Obtenida | E8: Correcta
A9: 1 | B9: El coste de la deuda (Kd) es la TIR de los flujos de caja producidos por la deuda. | C9: V | D9: =IF(C9="",0,IF(C9=E9,1,$C$5)) -> 1 | E9: V | F9: T
A10: =A9+1 -> 2 | B10: El coste de la deuda siempre es igual al pago de intereses dividido entre el principal de la deuda. | C10: F | D10: =IF(C10="",0,IF(C10=E10,1,$C$5)) -> 1 | E10: F | F10: F
A11: =A10+1 -> 3 | B11: La deuda siempre incrementa el ROE. | C11: F | D11: 1 | E11: F | F11: F
A12: 4 | B12: La deuda incrementa el ROE sólo si Kd < RONA. | C12: V | D12: 1 | E12: V | F12: T
A13: 5 | B13: El ROE proviene de dos fuentes, RONA y apalancamiento. | C13: V | D13: 1 | E13: V | F13: T
A14: 6 | B14: Un incremento del ROE debido a la deuda siempre produce un aumento del valor de la compañía. | C14: F | D14: 1 | E14: F | F14: F
A15: 7 | B15: Un aumento del apalancamiento disminuye el riesgo de la compañía. | C15: F | D15: 1 | E15: F | F15: F
A16: 8 | B16: A la larga, el coste de los fondos propios es habitualmente inferior al coste de la deuda. | C16: F | D16: 1 | E16: F | F16: F
A17: 9 | B17: Una manera de medir el riesgo financiero es el ratio EBIT/gastos financieros. | C17: V | D17: 1 | E17: V | F17: T
A18: 10 | B18: A las compañías con un gran riesgo operativo se les permite un mayor riesgo financiero. | C18: F | D18: 1 | E18: F | F18: F
A19: 11 | B19: El sentido común nos dice que deberíamos tener el apalancamiento que nos permita pagar los intereses y principal, incluso en años malos. | C19: V | D19: 1 | E19: V | F19: T
A20: =A19+1 -> 12 | B20: En la práctica puedes asumir que no es necesario devolver la deuda, porque a su vencimiento ésta será renovada por el banco; basta con pagar los intereses. | C20: F | D20: 1 | E20: F | F20: F
A21: 13 | B21: El sentido común nos dice que hay que pedir un préstamo sólo en casos de extrema necesidad, y no antes. | C21: F | D21: 1 | E21: F | F21: F
A22: 14 | B22: Siempre tienes que financiar el activo a largo plazo con deuda a largo plazo. | C22: F | D22: 1 | E22: F | F22: F
A23: 15 | B23: Fija el vencimiento del préstamo de manera que puedas devolver el principal. | C23: V | D23: 1 | E23: V | F23: T
A24: 16 | B24: Si quieres un préstamo a 10 años, tendrás que pagar al menos el tipo de interés de los bonos del gobierno a 10 años. | C24: V | D24: 1 | E24: V | F24: T
A25: 17 | B25: Puedes pedir prestado a tipo fijo o variable. | C25: V | D25: 1 | E25: V | F25: T
A26: 18 | B26: Si pides prestado en una moneda extranjera a menor tipo de interés, incrementarás tu rentabilidad pero aumentará tu riesgo. | C26: V | D26: 1 | E26: V | F26: T
A27: 19 | B27: Tiene sentido pedir prestado en moneda extranjera si tienes ingresos en esa moneda. | C27: V | D27: 1 | E27: V | F27: T
A28: 20 | B28: Un bono corporativo habitualmente tiene un vencimiento inferior a 18 meses. | C28: F | D28: 1 | E28: F | F28: F
A29: 21 | B29: Los pagarés de empresa tienen un vencimiento inferior a 18 meses. | C29: V | D29: 1 | E29: V | F29: T
A30: 22 | B30: A la larga, el coste de los fondos propios (Ke) es toda aquella rentabilidad que exija el accionista a la compañía para ser feliz y mantener las acciones de la compañía. | C30: V | D30: 1 | E30: V | F30: T
A31: 23 | B31: El ROE histórico puede darnos una aproximación del coste de los fondos propios, en el caso de compañías no cotizadas. | C31: F | D31: 1 | E31: F | F31: F
A32: 24 | B32: La Ke es muy similar en cada sector y en cada país, porque sino los inversores moverían su dinero de un sector a otro o de un país a otro. | C32: F | D32: 1 | E32: F | F32: F
A33: 25 | B33: La rentabilidad de mercado de una acción es la mejor estimación del Ke de una compañía. | C33: F | D33: 1 | E33: F | F33: F
A34: 26 | B34: La rentabilidad de mercado y el ROE son similares. | C34: F | D34: 1 | E34: F | F34: F
A35: 27 | B35: La rentabilidad de mercado de una acción está basada únicamente en la evolución de la compañía. | C35: F | D35: 1 | E35: F | F35: F
A36: 28 | B36: El CAPM dice que la prima de riesgo de una acción es una función de la prima de riesgo del mercado. | C36: V | D36: 1 | E36: V | F36: T
A37: 29 | B37: La prima de riesgo se calcula habitualmente como la rentabilidad de mercado menos la tasa libre de riesgo. | C37: V | D37: 1 | E37: V | F37: T
A38: 30 | B38: Las acciones agresivas tienen una beta inferior a 1. | C38: F | D38: 1 | E38: F | F38: F
A39: 31 | B39: Habitualmente la deuda da más flexibilidad que los fondos propios. | C39: F | D39: 1 | E39: F | F39: F
A40: 32 | B40: Habitualmente la deuda aporta más riesgo que los fondos propios. | C40: V | D40: 1 | E40: V | F40: T
A41: 33 | B41: Habitualmente la deuda es más barata que los fondos propios. | C41: V | D41: 1 | E41: V | F41: T
A42: 34 | B42: Es prudente el pedir prestado en la moneda con tipos de interés más bajos. | C42: F | D42: 1 | E42: F | F42: F
A43: 35 | B43: Desde un punto de vista práctico, puedes asumir que rentabilidad requerida, histórica y esperada, son la misma cosa. | C43: F | D43: 1 | E43: F | F43: F
A44: 36 | B44: El circulante hay que financiarlo siempre con deuda a corto y el AF con deuda a largo. | C44: F | D44: 1 | E44: F | F44: F
A45: 37 | B45: Un préstamo a largo plazo siempre es más caro que un prestamos a corto, ues tiene más riesgo, debido al largo plazo | C45: F | D45: 1 | E45: F | F45: F
A46: 38 | B46: Un préstamo al consumo es siempre más caro que una hipoteca pues tiene más riesgo | C46: V | D46: 1 | E46: V | F46: T
A47: 39 | B47: Si una compañía busca financiación lo normal es que amplie capital | C47: F | D47: 1 | E47: F | F47: F
A48: 40 | B48: Se puede asumir que el coste del capital es el ROE histórico que ha tenido la empresa. | C48: F | D48: 1 | E48: F | F48: F
B52: TOTAL CALIFICACION OBTENIDA | D52: =SUM(D9:D48) -> 40
B53: Máxima calificación posible | D53: 40

Sheet Perguntas (hidden)
B1: Cap 9. Perguntas de autoavaliação
B2: Responda ao seguinte questionário. Escreva suas respostas na coluna C. V ou F (verdadeiro ou falso).
B3: Verifique suas respostas clicando no 2 com o quadro no canto superior esquerdo; ou na cruz com o quadro acima da coluna F. | K3: 1 | L3: V | M3: 6 | N3: F | O3: 11 | P3: V | Q3: 16 | R3: V | S3: 21 | T3: V | U3: 26 | V3: F | W3: 31 | X3: F | Y3: 36 | Z3: F
B4: A coluna E se abrirá com a resposta correta. Se você tiver menos de 30 pontos, é recomendável revisar o Capítulo 1. | K4: 2 | L4: F | M4: 7 | N4: F | O4: 12 | P4: F | Q4: 17 | R4: V | S4: 22 | T4: V | U4: 27 | V4: F | W4: 32 | X4: V | Y4: 37 | Z4: F
B5: Resposta correta = 1 ponto. Sem resposta = 0 pontos. Resposta incorreta = | C5: 0 | K5: 3 | L5: F | M5: 8 | N5: F | O5: 13 | P5: F | Q5: 18 | R5: V | S5: 23 | T5: F | U5: 28 | V5: V | W5: 33 | X5: V | Y5: 38 | Z5: V
B6: © IESE. E.M. Abascal 2023. Versão 26/9/23 | K6: 4 | L6: V | M6: 9 | N6: V | O6: 14 | P6: F | Q6: 19 | R6: V | S6: 24 | T6: F | U6: 29 | V6: V | W6: 34 | X6: F | Y6: 39 | Z6: F
C7: Respostas | D7: Pontuação | E7: Resposta | K7: 5 | L7: V | M7: 10 | N7: F | O7: 15 | P7: V | Q7: 20 | R7: F | S7: 25 | T7: F | U7: 30 | V7: F | W7: 35 | X7: F | Y7: 40 | Z7: F
B8: PERGUNTAS | C8: V ou F | D8: Obtida | E8: Correta
A9: 1 | B9: O custo da dívida (Kd) é a TIR dos fluxos de caixa produzidos pela dívida. | D9: =IF(C9="",0,IF(C9=E9,1,$C$5)) -> 0 | E9: V
A10: =A9+1 -> 2 | B10: O custo da dívida é sempre igual ao pagamento de juros dividido pelo principal da dívida. | D10: =IF(C10="",0,IF(C10=E10,1,$C$5)) -> 0 | E10: F
A11: =A10+1 -> 3 | B11: A dívida sempre aumenta o ROE. | D11: 0 | E11: F
A12: 4 | B12: A dívida aumenta o ROE apenas se Kd < RONA. | D12: 0 | E12: V
A13: 5 | B13: O ROE provém de duas fontes, RONA e alavancagem. | D13: 0 | E13: V
A14: 6 | B14: Um aumento do ROE devido à dívida sempre gera um aumento no valor da empresa. | D14: 0 | E14: F
A15: 7 | B15: Um aumento da alavancagem diminui o risco da empresa. | D15: 0 | E15: F
A16: 8 | B16: A longo prazo, o custo dos fundos próprios é habitualmente inferior ao custo da dívida. | D16: 0 | E16: F
A17: 9 | B17: Uma maneira de medir o risco financeiro é a relação entre EBIT/despesas financeiras. | D17: 0 | E17: V
A18: 10 | B18: As empresas com grande risco operacional são permitidas maior risco financeiro. | D18: 0 | E18: F
A19: 11 | B19: O senso comum nos diz que devemos ter a alavancagem que nos permita pagar os juros e o principal, mesmo em anos ruins. | D19: 0 | E19: V
A20: =A19+1 -> 12 | B20: Na prática, pode-se presumir que não é necessário reembolsar a dívida, pois no vencimento ela será renovada pelo banco; basta pagar os juros. | D20: 0 | E20: F
A21: 13 | B21: O senso comum nos diz que só devemos tomar um empréstimo em casos de extrema necessidade, e não antes. | D21: 0 | E21: F
A22: 14 | B22: Sempre financie o ativo de longo prazo com dívida de longo prazo. | D22: 0 | E22: F
A23: 15 | B23: Defina o vencimento do empréstimo de forma que você possa reembolsar o principal. | D23: 0 | E23: V
A24: 16 | B24: Se você quiser um empréstimo de 10 anos, terá que pagar pelo menos a taxa de juros dos títulos do governo a 10 anos. | D24: 0 | E24: V
A25: 17 | B25: Você pode pedir emprestado a uma taxa fixa ou variável. | D25: 0 | E25: V
A26: 18 | B26: Se pedir emprestado em uma moeda estrangeira com uma taxa de juros mais baixa, aumentará sua rentabilidade, mas aumentará seu risco. | D26: 0 | E26: V
A27: 19 | B27: Faz sentido pedir emprestado em moeda estrangeira se você tiver receitas nessa moeda. | D27: 0 | E27: V
A28: 20 | B28: Um título corporativo geralmente tem um vencimento inferior a 18 meses. | D28: 0 | E28: F
A29: 21 | B29: As notas promissórias das empresas têm um vencimento inferior a 18 meses. | D29: 0 | E29: V
A30: 22 | B30: A longo prazo, o custo dos fundos próprios (Ke) é todo aquele retorno exigido pelo acionista para ser feliz e manter as ações da empresa. | D30: 0 | E30: V
A31: 23 | B31: O ROE histórico pode nos dar uma aproximação do custo dos fundos próprios, no caso de empresas não listadas. | D31: 0 | E31: F
A32: 24 | B32: O Ke é muito semelhante em cada setor e em cada país, porque, do contrário, os investidores moveriam seu dinheiro de um setor para outro ou de um país para outro. | D32: 0 | E32: F
A33: 25 | B33: O retorno de mercado de uma ação é a melhor estimativa do Ke de uma empresa. | D33: 0 | E33: F
A34: 26 | B34: O retorno de mercado e o ROE são semelhantes. | D34: 0 | E34: F
A35: 27 | B35: O retorno de mercado de uma ação está baseado unicamente na evolução da empresa. | D35: 0 | E35: F
A36: 28 | B36: O CAPM diz que o prêmio de risco de uma ação é uma função do prêmio de risco do mercado. | D36: 0 | E36: V
A37: 29 | B37: O prêmio de risco geralmente é calculado como o retorno de mercado menos a taxa livre de risco. | D37: 0 | E37: V
A38: 30 | B38: Ações agressivas têm um beta inferior a 1. | D38: 0 | E38: F
A39: 31 | B39: Normalmente, a dívida proporciona mais flexibilidade do que os fundos próprios. | D39: 0 | E39: F
A40: 32 | B40: Normalmente, a dívida implica mais risco do que os fundos próprios. | D40: 0 | E40: V
A41: 33 | B41: Normalmente, a dívida é mais barata do que os fundos próprios. | D41: 0 | E41: V
A42: 34 | B42: É prudente pedir emprestado na moeda com as taxas de juros mais baixas. | D42: 0 | E42: F
A43: 35 | B43: Do ponto de vista prático, pode-se presumir que a rentabilidade exigida, histórica e esperada são a mesma coisa. | D43: 0 | E43: F
A44: 36 | B44: O capital de giro deve ser sempre financiado com dívida de curto prazo e os ativos fixos com dívida de longo prazo. | D44: 0 | E44: F
A45: 37 | B45: Um empréstimo de longo prazo é sempre mais caro que um empréstimo de curto prazo, pois tem mais risco, devido ao longo prazo. | D45: 0 | E45: F
A46: 38 | B46: Um empréstimo ao consumo é sempre mais caro que uma hipoteca porque tem mais risco. | D46: 0 | E46: V
A47: 39 | B47: Se uma empresa está buscando financiamento, o normal é que ela aumente seu capital. | D47: 0 | E47: F
A48: 40 | B48: Pode-se presumir que o custo de capital é o ROE histórico que a empresa teve. | D48: 0 | E48: F
B52: PONTUAÇÃO TOTAL OBTIDA | D52: =SUM(D9:D48) -> 0
B53: Máxima Pontuação Possível | D53: 40

Sheet Rates
B1: Central Banks | F1: Tbond 10 Y Yield
A2: Date | B2: FED | C2: ECB | E2: TB US | F2: GERMANY | G2: SPAIN
A3: 1954-07-31 | B3: 0.25
A4: 1954-08-31 | B4: 1.44
A5: 1954-09-30 | B5: 1.44
A6: 1954-10-31 | B6: 1.13
A7: 1954-11-30 | B7: 1.38
A8: 1954-12-31 | B8: 1.44
A9: 1955-01-31 | B9: 1.44
A10: 1955-02-28 | B10: 1.44
A11: 1955-03-31 | B11: 1.44
A12: 1955-04-30 | B12: 1.69
A13: 1955-05-31 | B13: 1.69
A14: 1955-06-30 | B14: 1.69
A15: 1955-07-31 | B15: 1.75
A16: 1955-08-31 | B16: 2
A17: 1955-09-30 | B17: 2.19
A18: 1955-10-31 | B18: 2.25
A19: 1955-11-30 | B19: 2.44
A20: 1955-12-31 | B20: 2.5
A21: 1956-01-31 | B21: 2.5
A22: 1956-02-29 | B22: 2.5
A23: 1956-03-31 | B23: 2.5
A24: 1956-04-30 | B24: 2.75
A25: 1956-05-31 | B25: 2.75
A26: 1956-06-30 | B26: 2.75
A27: 1956-07-31 | B27: 2.69
A28: 1956-08-31 | B28: 3
A29: 1956-09-30 | B29: 3
A30: 1956-10-31 | B30: 3
A31: 1956-11-30 | B31: 3
A32: 1956-12-31 | B32: 3
A33: 1957-01-31 | B33: 3
A34: 1957-02-28 | B34: 3
A35: 1957-03-31 | B35: 2.94
A36: 1957-04-30 | B36: 3
A37: 1957-05-31 | B37: 3
A38: 1957-06-30 | B38: 3
A39: 1957-07-31 | B39: 2.88
A40: 1957-08-31 | B40: 3.5
A41: 1957-09-30 | B41: 3.5
A42: 1957-10-31 | B42: 3.5
A43: 1957-11-30 | B43: 3
A44: 1957-12-31 | B44: 3
A45: 1958-01-31 | B45: 1.5
A46: 1958-02-28 | B46: 0.5
A47: 1958-03-31 | B47: 0.5
A48: 1958-04-30 | B48: 0.25
A49: 1958-05-31 | B49: 0.13
A50: 1958-06-30 | B50: 0.5
A51: 1958-07-31 | B51: 0.38
A52: 1958-08-31 | B52: 1.75
A53: 1958-09-30 | B53: 1.5
A54: 1958-10-31 | B54: 2
A55: 1958-11-30 | B55: 2.5
A56: 1958-12-31 | B56: 2.38
A57: 1959-01-31 | B57: 2.5
A58: 1959-02-28 | B58: 2.5
A59: 1959-03-31 | B59: 3
A60: 1959-04-30 | B60: 3
A61: 1959-05-31 | B61: 3.25
A62: 1959-06-30 | B62: 3
A63: 1959-07-31 | B63: 3.5
A64: 1959-08-31 | B64: 3.5
A65: 1959-09-30 | B65: 3
A66: 1959-10-31 | B66: 4
A67: 1959-11-30 | B67: 4
A68: 1959-12-31 | B68: 4
A69: 1960-01-31 | B69: 4
A70: 1960-02-29 | B70: 4
A71: 1960-03-31 | B71: 4
A72: 1960-04-30 | B72: 4
A73: 1960-05-31 | B73: 3.5
A74: 1960-06-30 | B74: 3.5
A75: 1960-07-31 | B75: 3.25
A76: 1960-08-31 | B76: 3
A77: 1960-09-30 | B77: 3
A78: 1960-10-31 | B78: 2.75
A79: 1960-11-30 | B79: 0.25
A80: 1960-12-31 | B80: 3
A81: 1961-01-31 | B81: 2.25
A82: 1961-02-28 | B82: 2
A83: 1961-03-31 | B83: 2
A84: 1961-04-30 | B84: 0.5
A85: 1961-05-31 | B85: 1
A86: 1961-06-30 | B86: 0.5
A87: 1961-07-31 | B87: 2.5
A88: 1961-08-31 | B88: 1.75
A89: 1961-09-30 | B89: 1.5
A90: 1961-10-31 | B90: 2
A91: 1961-11-30 | B91: 1.75
A92: 1961-12-31 | B92: 2.5
A93: 1962-01-31 | B93: 1.5 | E93: 4.12
A94: 1962-02-28 | B94: 2.75 | E94: 4
A95: 1962-03-31 | B95: 2.75 | E95: 3.9
A96: 1962-04-30 | B96: 2.5 | E96: 3.86
A97: 1962-05-31 | B97: 2.75 | E97: 3.89
A98: 1962-06-30 | B98: 2.75 | E98: 4
A99: 1962-07-31 | B99: 2.75 | E99: 4.02
A100: 1962-08-31 | B100: 3 | E100: 3.96
A101: 1962-09-30 | B101: 2.75 | E101: 3.94
A102: 1962-10-31 | B102: 3 | E102: 3.92
A103: 1962-11-30 | B103: 2.88 | E103: 3.92
A104: 1962-12-31 | B104: 3 | E104: 3.84
A105: 1963-01-31 | B105: 3 | E105: 3.86
A106: 1963-02-28 | B106: 3 | E106: 3.94
A107: 1963-03-31 | B107: 3 | E107: 3.95
A108: 1963-04-30 | B108: 3 | E108: 3.95
A109: 1963-05-31 | B109: 3 | E109: 3.96
A110: 1963-06-30 | B110: 3 | E110: 4
A111: 1963-07-31 | B111: 3.5 | E111: 3.99
A112: 1963-08-31 | B112: 3.5 | E112: 4.01 | G112: Avg 99-08
A113: 1963-09-30 | B113: 3.5 | E113: 4.07 | G113: Min
A114: 1963-10-31 | B114: 3.5 | E114: 4.13 | G114: Max
A115: 1963-11-30 | B115: 3.5 | E115: 4.08
A116: 1963-12-31 | B116: 3.25 | E116: 4.15 | G116: Avg 99-08
A117: 1964-01-31 | B117: 3.5 | E117: 4.17 | G117: Min
A118: 1964-02-29 | B118: 3.5 | E118: 4.18 | G118: Max
A119: 1964-03-31 | B119: 3.5 | E119: 4.25
A120: 1964-04-30 | B120: 3.5 | E120: 4.22
A121: 1964-05-31 | B121: 3.5 | E121: 4.19
A122: 1964-06-30 | B122: 3.5 | E122: 4.15
A123: 1964-07-31 | B123: 3.5 | E123: 4.2
A124: 1964-08-31 | B124: 3.5 | E124: 4.21
A125: 1964-09-30 | B125: 2.75 | E125: 4.18
A126: 1964-10-31 | B126: 3.5 | E126: 4.16
A127: 1964-11-30 | B127: 4 | E127: 4.19
A128: 1964-12-31 | B128: 4 | E128: 4.19
A129: 1965-01-31 | B129: 4 | E129: 4.19
A130: 1965-02-28 | B130: 4 | E130: 4.22
A131: 1965-03-31 | B131: 4 | E131: 4.2
A132: 1965-04-30 | B132: 4.13 | E132: 4.21
A133: 1965-05-31 | B133: 4.13 | E133: 4.23
A134: 1965-06-30 | B134: 4.13 | E134: 4.2
A135: 1965-07-31 | B135: 4.13 | E135: 4.21
A136: 1965-08-31 | B136: 4 | E136: 4.27
A137: 1965-09-30 | B137: 4.13 | E137: 4.36
A138: 1965-10-31 | B138: 4.13 | E138: 4.41
A139: 1965-11-30 | B139: 4.13 | E139: 4.46
A140: 1965-12-31 | B140: 4.63 | E140: 4.62
A141: 1966-01-31 | B141: 4.5 | E141: 4.65
A142: 1966-02-28 | B142: 4.63 | E142: 5.02
A143: 1966-03-31 | B143: 4.75 | E143: 4.8
A144: 1966-04-30 | B144: 4.63 | E144: 4.79
A145: 1966-05-31 | B145: 4.75 | E145: 4.81
A146: 1966-06-30 | B146: 5.5 | E146: 4.9
A147: 1966-07-31 | B147: 5.75 | E147: 5.05
A148: 1966-08-31 | B148: 4.5 | E148: 5.51
A149: 1966-09-30 | B149: 5.75 | E149: 4.99
A150: 1966-10-31 | B150: 5.75 | E150: 4.97
A151: 1966-11-30 | B151: 5.75 | E151: 5.15
A152: 1966-12-31 | B152: 5 | E152: 4.66
A153: 1967-01-31 | B153: 4 | E153: 4.47
A154: 1967-02-28 | B154: 4.75 | E154: 4.72
A155: 1967-03-31 | B155: 4.5 | E155: 4.52
A156: 1967-04-30 | B156: 4 | E156: 4.78
A157: 1967-05-31 | B157: 4.13 | E157: 4.84
A158: 1967-06-30 | B158: 3.5 | E158: 5.2
A159: 1967-07-31 | B159: 3.75 | E159: 5.18
A160: 1967-08-31 | B160: 4 | E160: 5.27
A161: 1967-09-30 | B161: 3.75 | E161: 5.31
A162: 1967-10-31 | B162: 4.13 | E162: 5.57
A163: 1967-11-30 | B163: 4.5 | E163: 5.67
A164: 1967-12-31 | B164: 4.5 | E164: 5.7
A165: 1968-01-31 | B165: 4.75 | E165: 5.53
A166: 1968-02-29 | B166: 4.75 | E166: 5.56
A167: 1968-03-31 | B167: 5.25 | E167: 5.76
A168: 1968-04-30 | B168: 6.25 | E168: 5.73
A169: 1968-05-31 | B169: 6.13 | E169: 5.95
A170: 1968-06-30 | B170: 5.5 | E170: 5.64
A171: 1968-07-31 | B171: 6 | E171: 5.41
A172: 1968-08-31 | B172: 5.75 | E172: 5.43
A173: 1968-09-30 | B173: 5.5 | E173: 5.46
A174: 1968-10-31 | B174: 6 | E174: 5.62
A175: 1968-11-30 | B175: 6 | E175: 5.78
A176: 1968-12-31 | B176: 4 | E176: 6.2
A177: 1969-01-31 | B177: 6.38 | E177: 6.09
A178: 1969-02-28 | B178: 7 | E178: 6.26
A179: 1969-03-31 | B179: 6.25 | E179: 6.3
A180: 1969-04-30 | B180: 8 | E180: 6.21
A181: 1969-05-31 | B181: 9.38 | E181: 6.56
A182: 1969-06-30 | B182: 7.5 | E182: 6.66
A183: 1969-07-31 | B183: 8.75 | E183: 6.72
A184: 1969-08-31 | B184: 9.75 | E184: 6.83
A185: 1969-09-30 | B185: 8.5 | E185: 7.45
A186: 1969-10-31 | B186: 9 | E186: 7
A187: 1969-11-30 | B187: 9.25 | E187: 7.29
A188: 1969-12-31 | B188: 5 | E188: 8.05
A189: 1970-01-31 | B189: 9.38 | E189: 7.77
A190: 1970-02-28 | B190: 8.5 | E190: 6.9
A191: 1970-03-31 | B191: 7.5 | E191: 6.98
A192: 1970-04-30 | B192: 8.5 | E192: 7.78
A193: 1970-05-31 | B193: 7.88 | E193: 7.95
A194: 1970-06-30 | B194: 5.75 | E194: 7.76
A195: 1970-07-31 | B195: 6.75 | E195: 7.39
A196: 1970-08-31 | B196: 6.5 | E196: 7.49
A197: 1970-09-30 | B197: 5 | E197: 7.3
A198: 1970-10-31 | B198: 6.13 | E198: 7.31
A199: 1970-11-30 | B199: 5.5 | E199: 6.48
A200: 1970-12-31 | B200: 3 | E200: 6.56
... 632 more rows

Sheet Tables
I2: Debt / | J2: EBITA / | L2: Cash Flow / | M2: EBITA / | N2: Operating | P2: (FFO + Int Exp) / | Q2: EBITA / | R2: CAPEX / | S2: Revenue
I3: EBITDA | J3: Inter.Expen | K3: Revenue | L3: Net Debt | M3: Revenue | N3: Margin | O3: FFO/Debt | P3: / Int Exp | Q3: Averg Assets | R3: Depreciation | S3: Volatility
H4: Aaa | I4: 1.5 | J4: 16.6 | K4: 125.8 | L4: 0.442 | M4: 0.322 | N4: 0.256 | O4: 0.659 | P4: 19.3 | Q4: 0.168 | R4: 1.4 | S4: 16
H5: Aa | I5: 1.4 | J5: 19.7 | K5: 72.4 | L5: 0.392 | M5: 0.194 | N5: 0.185 | O5: 0.65 | P5: 21.9 | Q5: 0.115 | R5: 1.4 | S5: 10.3
B6: Moody's | C6: S&P | D6: Explicación | E6: Explanation | H6: A | I6: 2.1 | J6: 11.7 | K6: 20.2 | L6: 0.323 | M6: 0.148 | N6: 0.133 | O6: 0.392 | P6: 13.6 | Q6: 0.104 | R6: 1.3 | S6: 9.9
B7: Investment grade | D7: Investment grade | E7: Investment grade | H7: Baa | I7: 2.8 | J7: 6.6 | K7: 8 | L7: 0.251 | M7: 0.153 | N7: 0.132 | O7: 0.296 | P7: 8.5 | Q7: 0.089 | R7: 1.3 | S7: 11.7
B8: AAA | C8: AAA | D8: Nivel mínimo de riesgo crediticio | E8: Minimum level of credit risk | H8: Ba | I8: 3.5 | J8: 3.7 | K8: 3.2 | L8: 0.203 | M8: 0.148 | N8: 0.124 | O8: 0.22 | P8: 5.4 | Q8: 0.089 | R8: 1.3 | S8: 15.6
B9: Aa1/Aa2/Aa3 | C9: AA+/AA/AA- | D9: Nivel muy bajo de riesgo crediticio | E9: Very low level of credit risk | H9: B | I9: 5.6 | J9: 1.8 | K9: 0.8 | L9: 0.086 | M9: 0.136 | N9: 0.089 | O9: 0.094 | P9: 2.4 | Q9: 0.071 | R9: 1.1 | S9: 18.5
B10: A1/A2/A3 | C10: A+/A/A- | D10: Nivel bajo de riesgo crediticio | E10: Low level of credit risk | H10: Caa-C | I10: 7.9 | J10: 0.7 | K10: 0.7 | L10: 0.029 | M10: 0.067 | N10: 0.04 | O10: 0.036 | P10: 1.4 | Q10: 0.05 | R10: 0.9 | S10: 13.8
B11: Baa1/Baa2/Baa3 | C11: BBB+/BBB/BBB- | D11: Riesgo crediticio moderado | E11: Moderate credit risk | H11: *Table reports September 2019 median values: from Moody's Financial Metrics Key Ratios By Rating And Industry For Global Non-Financial Corporations.
B12: Speculative grade | D12: Speculative grade | E12: Speculative grade
B13: Ba1/Ba2/Ba3 | C13: BB+/BB/BB- | D13: Riesgo crediticio sustancial | E13: Substantial credit risk
B14: B1/B2/B3 | C14: B+/B/B- | D14: Riesgo crediticio alto | E14: High credit risk
B15: Caa1/Caa2/Caa3 | C15: CCC+/CCC/CCC- | D15: Riesgo crediticio muy alto | E15: Very high credit risk
B16: Ca | C16: CC | D16: Es probable que esté en situación de incumplimiento o muy cerca de estarlo, pero existe la posibilidad de recuperar el capital | E16: probably in default or very close to it, but there is a possibility of recovering the capital
B17: C | C17: SD/D | D17: En incumplimiento, con pocas posibilidades de recuperar el capital | E17: In default, with little chance of recovering capital
B29: OLD TABLES. EDITION 2012
A31: Table 1 | B31: 10Y Gov. Bond | E31: 2Y Gov. Bond | H31: Spread 10 to 2Y
A32: 2000-11 | B32: USA | C32: GER | D32: SPA | E32: USA | F32: GER | G32: SPA | H32: USA | I32: GER | J32: SPA
A33: Max. | B33: 6.7 | C33: 5.5 | D33: 6.1 | E33: 6.7 | F33: 5.2 | G33: 5.3 | H33: 2.8 | I33: 2.2 | J33: 2.7
A34: Min. | B34: 1.9 | C34: 1.9 | D34: 3.1 | E34: 0.2 | F34: 0.5 | G34: 1.4 | H34: -0.5 | I34: 0 | J34: 0.1
A35: Average | B35: 4.2 | C35: 3.9 | D35: 4.4 | E35: 2.8 | F35: 2.9 | G35: 3.2 | H35: 1.4 | I35: 1.1 | J35: 1.2
A36: 1993-99
A37: Max. | B37: 7.9 | C37: 7.6 | D37: 12.3 | E37: 7.7 | F37: 6.5 | G37: 12.7 | H37: 2.2 | I37: 2.7 | J37: 1.9
A38: Min. | B38: 4.4 | C38: 3.6 | D38: 3.9 | E38: 3.8 | F38: 2.7 | G38: 2.7 | H38: 0 | I38: 0.4 | J38: -1
A39: Average | B39: 6.2 | C39: 5.8 | D39: 8 | E39: 5.5 | F39: 4.5 | G39: 7 | H39: 0.6 | I39: 1.4 | J39: 0.9
A42: Table 2. Standard & Poor’s Rating, 2001-03
A43: Average ratios for every grade, during 2001-03 for US industrial long-term debt
B45: Ratio/ Ratings | C45: EBIT interest coverage | D45: EBITDA interest coverage | E45: FFO / Total debt (%) | F45: FOCF / Total debt | G45: Total debt / EBITDA | H45: Return on capital | I45: Total debt / capital (%)
B46: Description | C46: EBIT / Interests | D46: EBITDA / Interests | E46: CFO / Debt | F46: FCF after tax / Debt | G46: Debt / EBITDA | H46: EBIT / Net assets | I46: Debt / (Debt + Equity)
A47: Investment Grade | B47: AAA | C47: 23.8 | D47: 25.3 | E47: 1.678 | F47: 1.041 | G47: 0.2 | H47: 0.351 | I47: 0.062
B48: AA | C48: 13.6 | D48: 17.1 | E48: 0.775 | F48: 0.411 | G48: 1.1 | H48: 0.269 | I48: 0.348
B49: A | C49: 6.9 | D49: 9.4 | E49: 0.432 | F49: 0.254 | G49: 1.7 | H49: 0.168 | I49: 0.398
B50: BBB | C50: 4.2 | D50: 5.9 | E50: 0.346 | F50: 0.169 | G50: 2.4 | H50: 0.134 | I50: 0.456
A51: Speculative Grade | B51: BB | C51: 2.3 | D51: 3.1 | E51: 0.2 | F51: 0.079 | G51: 3.8 | H51: 0.103 | I51: 0.572
B52: B | C52: 0.9 | D52: 1.6 | E52: 0.101 | F52: 0.026 | G52: 5.6 | H52: 0.067 | I52: 0.742
B53: CCC | C53: 0.4 | D53: 0.9 | E53: 0.029 | F53: -0.009 | G53: 7.4 | H53: 0.023 | I53: 1.012
A56: Tables 3 & 4. Moody's Financial Metrics Key Ratios by Rating and Industry.
A57: For Global Non-Financial Corporations. 2008
B59: Ratio/ Ratings | C59: EBITA/ Average AT | D59: Operating Margin | E59: EBITA Margin | F59: EBITA/ IntExp | G59: (FFO+IntExp)/ IntExp
A60: Investment Grade | B60: Aaa | C60: 0.153 | D60: 0.149 | E60: 0.148 | F60: 17 | G60: 15.5
B61: Aa | C61: 0.156 | D61: 0.17 | E61: 0.175 | F61: 13.7 | G61: 15.5
B62: A | C62: 0.125 | D62: 0.138 | E62: 0.152 | F62: 8.2 | G62: 9.6
B63: Baa | C63: 0.101 | D63: 0.126 | E63: 0.139 | F63: 5.1 | G63: 6.6
A64: Speculative Grade | B64: Ba | C64: 0.096 | D64: 0.122 | E64: 0.134 | F64: 3.4 | G64: 4.7
B65: B | C65: 0.073 | D65: 0.085 | E65: 0.094 | F65: 1.5 | G65: 2.6
B66: Caa-C | C66: 0.02 | D66: 0.016 | E66: 0.024 | F66: 0.3 | G66: 1.5
B70: Ratio/ Ratings | C70: Debt/ EBITDA | D70: Debt/ BookCap | E70: FFO/ NetDebt | F70: RCF/ NetDebt | G70: CAPEX/ DepExp | H70: Rev Vol
A71: Investment Grade | B71: Aaa | C71: 0.9 | D71: 0.227 | E71: 1.173 | F71: 0.963 | G71: 1.6 | H71: 5.6
B72: Aa | C72: 1 | D72: 0.325 | E72: 0.684 | F72: 0.384 | G72: 1.4 | H72: 4.4
B73: A | C73: 1.7 | D73: 0.391 | E73: 0.438 | F73: 0.387 | G73: 1.3 | H73: 5.5
B74: Baa | C74: 2.4 | D74: 0.448 | E74: 0.292 | F74: 0.277 | G74: 1.2 | H74: 7.2
A75: Speculative Grade | B75: Ba | C75: 3.3 | D75: 0.535 | E75: 0.218 | F75: 0.2 | G75: 1.2 | H75: 10.7
B76: B | C76: 5 | D76: 0.702 | E76: 0.12 | F76: 0.117 | G76: 1.1 | H76: 9.2
B77: Caa-C | C77: 6.3 | D77: 0.925 | E77: 0.043 | F77: 0.046 | G77: 0.9 | H77: 11.1
A79: Definitions:
A81: EBITA / Average Assets
A82: EBITA / Average of Current and Previous Year Assets
A83: EBITA / Interest Expense
A84: EBITA / Interest Expense
A85: EBITA Margin
A86: EBITA / Net Revenue
A87: (FFO + Interest Expense) / Interest Expense
A88: (Funds From Operations + Interest Expense) / Interest Expense
A89: FFO / Debt
A90: Funds From Operations / (Short-Term Debt + Long-Term Debt)
A91: RCF / Debt
A92: (FFO - Preferred Dividends - Common Dividends - Minority Dividends) / (Short-Term Debt + Long-Term Debt)
A93: Debt / EBITDA
A94: (Short-Term Debt + Long-Term Debt) / EBITDA
A95: Debt / Book Capitalization
A96: (Short-Term Debt + Long-Term Debt) /
A97: (Short-Term Debt + Long-Term Debt + Deferred Taxes + Minority Interest + Book Equity)
A98: Operating Margin
A99: Operating Profit / Net Revenue
A100: CAPEX / Depreciation Expense
A101: CAPEX / Depreciation Expense
A102: Revenue Volatility
A103: Standard Deviation of Trailing Five Years of Net Revenue Growth
A106: Average ROE and market Return, during 1995-2002, for Telecom Compnaies (in %)
B108: ATT | C108: Bell | D108: BT | E108: Telefónica | F108: Sprint | G108: SBC | H108: Berizon
A109: ROE in % | B109: 9 | C109: 20 | D109: 9 | E109: 5 | F109: 6 | G109: 28 | H109: 24
A110: Market Return in % | B110: 8 | C110: 17 | D110: 8 | E110: 29 | F110: 18 | G110: 6 | H110: 5
A116: OLD VERSION MOODY'S 2006. NOT TO BE INCLUDEN IN THE BOOK. | I116: Summary
I117: Invest. Grade | J117: Speculative
I118: 6.5 | J118: 2.1
A119: Table 3. Moody's ratings July 2006 | I119: 2.4 | J119: 1.4
A120: Median ratios for every grade | I120: 0.436 | J120: 0.668
C121: Investment-Grade | G121: Speculative-Grade | I121: =I120/(1-I120) -> 0.7730496454 | J121: 2.012048193
A122: Ratio | B122: Description | C122: Aaa-Aa | D122: A | E122: Baa | F122: Ba | G122: B | H122: Caa-C | I122: =I119*I121 -> 1.855319149 | J122: 2.81686747
A123: Interest Coverage | B123: (EBIT / Interests) | C123: 16 | D123: 8.6 | E123: 5.4 | F123: 3.7 | G123: 1.9 | H123: 0.7 | I123: 0.284 | J123: 0.127
A124: Asset Coverage | B124: Assets / Debt | C124: 3.7 | D124: 2.4 | E124: 2.3 | F124: 2 | G124: 1.3 | H124: 1 | I124: =I125*I122 -> 0.1168851064 | J124: 0.05352048193
A125: Leverage | B125: Debt / (Debt + Equity) | C125: 0.316 | D125: 0.417 | E125: 0.448 | F125: 0.498 | G125: 0.687 | H125: 0.922 | I125: 0.063 | J125: 0.019
A126: Leverage-1* | B126: Debt / Equity (times) | C126: 0.4619883041 | D126: 0.7152658662 | E126: 0.8115942029 | F126: 0.9920318725 | G126: 2.194888179 | H126: 11.82051282 | I126: 0.078 | J126: 0.021
A127: Leverage-2* | B127: Assets / Equity | C127: 1.709356725 | D127: 1.716638079 | E127: 1.866666667 | F127: 1.984063745 | G127: 2.853354633 | H127: 11.82051282 | I127: 0.046 | J127: 0.039
A128: Cash Flow-to-Debt | B128: CFO / Debt | C128: 0.524 | D128: 0.326 | E128: 0.258 | F128: 0.216 | G128: 0.121 | H128: 0.064 | I128: 6.6 | J128: 5.9
A129: Return on Equity* | B129: Net Income / Equity | C129: 0.1982853801 | D129: 0.1287478559 | E129: 0.09893333333 | F129: 0.08729880478 | G129: 0.04850702875 | H129: -0.2482307692
A130: Return on Assets | B130: Net Income / Assets | C130: 0.116 | D130: 0.075 | E130: 0.053 | F130: 0.044 | G130: 0.017 | H130: -0.021
A131: Profit | B131: Net Income / Sales | C131: 0.118 | D131: 0.09 | E131: 0.067 | F131: 0.05 | G131: 0.02 | H131: -0.026
A132: Liquidity | B132: Cash / Total Assets | C132: 0.078 | D132: 0.047 | E132: 0.04 | F132: 0.043 | G132: 0.039 | H132: 0.033
A133: Revenue Stability | C133: 7.2 | D133: 7.3 | E133: 6.1 | F133: 5.2 | G133: 6.1 | H133: 7.3
A134: * Ratios included and calculated by the author, not by Moody's
A136: Detailed calculation of every ratio
A137: • Interest Coverage:
A138: (EBIT - Interest Capitalized + (1/3)*Rental Expense) / (Interest Expense + (1/3)*Rental Expense +Preferred Dividends/0.65)
A139: • Asset Coverage:
A140: (Total Assets - Goodwill - Intangibles) / Total Debt
A141: • Leverage:
A142: (Total Debt + 8*Rental Expense) / (Total Debt + 8*Rental Expense + Deferred Taxes + Minority Interest + Total Equity)
A143: • Cash Flow/Debt:
A144: (Net After-Tax Income Before X-Items + Depreciations - Dividends) / (Total Debt + 8*Rental Expense)
A145: • Return on Assets:
A146: Net After-Tax Income Before X-Items / 2 Year Average Assets
A147: • Profit:
A148: Net After-Tax Income Before X-Items / Net Sales
A149: • Liquidity:
A150: Cash & Market Securities / Total Assets
A151: • Revenue Stability:
A152: 5 Year Average Net Sales / 5 Year Standard Deviation Net Sales
A153: See example of this ratio ----> | C153: Years | D153: Sales A | E153: Change | F153: Sales B
A154: Sales for companies A (stable) a B (volatile) | C154: 1 | D154: 100 | F154: 100
C155: 2 | D155: 110 | E155: =D155/D154-1 -> 0.1 | F155: 140 | G155: =F155/F154-1 -> 0.4
C156: 3 | D156: 115 | E156: =D156/D155-1 -> 0.04545454545 | F156: 160 | G156: =F156/F155-1 -> 0.1428571429
C157: 4 | D157: 110 | E157: =D157/D156-1 -> -0.04347826087 | F157: 110 | G157: =F157/F156-1 -> -0.3125
C158: 5 | D158: 105 | E158: =D158/D157-1 -> -0.04545454545 | F158: 90 | G158: =F158/F157-1 -> -0.1818181818
C159: Average | D159: =AVERAGE(D154:D158) -> 108 | E159: =AVERAGE(E154:E158) -> 0.01413043478 | F159: =AVERAGE(F154:F158) -> 120 | G159: =AVERAGE(G154:G158) -> 0.01213474026
C160: St. Dev | D160: =STDEV(D154:D159) -> 5.099019514 | E160: =STDEV(E154:E159) -> 0.06169261265 | F160: =STDEV(F154:F159) -> 26.07680962 | G160: =STDEV(G154:G159) -> 0.2786275546
C161: Average / st dev | D161: =D159/D160 -> 21.18054259 | E161: =E159/E160 -> 0.2290458156 | F161: =F159/F160 -> 4.601789933 | G161: =G159/G160 -> 0.04355183132

Sheet Taxas (hidden)
B1: Central Banks | F1: Tbond 10 Y Yield
A2: Date | B2: FED | C2: BCE | E2: EUA | F2: ALEMANHA | G2: ESPANHA
A3: 1954-07-31 | B3: 0.25
A4: 1954-08-31 | B4: 1.44
A5: 1954-09-30 | B5: 1.44
A6: 1954-10-31 | B6: 1.13
A7: 1954-11-30 | B7: 1.38
A8: 1954-12-31 | B8: 1.44
A9: 1955-01-31 | B9: 1.44
A10: 1955-02-28 | B10: 1.44
A11: 1955-03-31 | B11: 1.44
A12: 1955-04-30 | B12: 1.69
A13: 1955-05-31 | B13: 1.69
A14: 1955-06-30 | B14: 1.69
A15: 1955-07-31 | B15: 1.75
A16: 1955-08-31 | B16: 2
A17: 1955-09-30 | B17: 2.19
A18: 1955-10-31 | B18: 2.25
A19: 1955-11-30 | B19: 2.44
A20: 1955-12-31 | B20: 2.5
A21: 1956-01-31 | B21: 2.5
A22: 1956-02-29 | B22: 2.5
A23: 1956-03-31 | B23: 2.5
A24: 1956-04-30 | B24: 2.75
A25: 1956-05-31 | B25: 2.75
A26: 1956-06-30 | B26: 2.75
A27: 1956-07-31 | B27: 2.69
A28: 1956-08-31 | B28: 3
A29: 1956-09-30 | B29: 3
A30: 1956-10-31 | B30: 3
A31: 1956-11-30 | B31: 3
A32: 1956-12-31 | B32: 3
A33: 1957-01-31 | B33: 3
A34: 1957-02-28 | B34: 3
A35: 1957-03-31 | B35: 2.94
A36: 1957-04-30 | B36: 3
A37: 1957-05-31 | B37: 3
A38: 1957-06-30 | B38: 3
A39: 1957-07-31 | B39: 2.88
A40: 1957-08-31 | B40: 3.5
A41: 1957-09-30 | B41: 3.5
A42: 1957-10-31 | B42: 3.5
A43: 1957-11-30 | B43: 3
A44: 1957-12-31 | B44: 3
A45: 1958-01-31 | B45: 1.5
A46: 1958-02-28 | B46: 0.5
A47: 1958-03-31 | B47: 0.5
A48: 1958-04-30 | B48: 0.25
A49: 1958-05-31 | B49: 0.13
A50: 1958-06-30 | B50: 0.5
A51: 1958-07-31 | B51: 0.38
A52: 1958-08-31 | B52: 1.75
A53: 1958-09-30 | B53: 1.5
A54: 1958-10-31 | B54: 2
A55: 1958-11-30 | B55: 2.5
A56: 1958-12-31 | B56: 2.38
A57: 1959-01-31 | B57: 2.5
A58: 1959-02-28 | B58: 2.5
A59: 1959-03-31 | B59: 3
A60: 1959-04-30 | B60: 3
A61: 1959-05-31 | B61: 3.25
A62: 1959-06-30 | B62: 3
A63: 1959-07-31 | B63: 3.5
A64: 1959-08-31 | B64: 3.5
A65: 1959-09-30 | B65: 3
A66: 1959-10-31 | B66: 4
A67: 1959-11-30 | B67: 4
A68: 1959-12-31 | B68: 4
A69: 1960-01-31 | B69: 4
A70: 1960-02-29 | B70: 4
A71: 1960-03-31 | B71: 4
A72: 1960-04-30 | B72: 4
A73: 1960-05-31 | B73: 3.5
A74: 1960-06-30 | B74: 3.5
A75: 1960-07-31 | B75: 3.25
A76: 1960-08-31 | B76: 3
A77: 1960-09-30 | B77: 3
A78: 1960-10-31 | B78: 2.75
A79: 1960-11-30 | B79: 0.25
A80: 1960-12-31 | B80: 3
A81: 1961-01-31 | B81: 2.25
A82: 1961-02-28 | B82: 2
A83: 1961-03-31 | B83: 2
A84: 1961-04-30 | B84: 0.5
A85: 1961-05-31 | B85: 1
A86: 1961-06-30 | B86: 0.5
A87: 1961-07-31 | B87: 2.5
A88: 1961-08-31 | B88: 1.75
A89: 1961-09-30 | B89: 1.5
A90: 1961-10-31 | B90: 2
A91: 1961-11-30 | B91: 1.75
A92: 1961-12-31 | B92: 2.5
A93: 1962-01-31 | B93: 1.5 | E93: 4.12
A94: 1962-02-28 | B94: 2.75 | E94: 4
A95: 1962-03-31 | B95: 2.75 | E95: 3.9
A96: 1962-04-30 | B96: 2.5 | E96: 3.86
A97: 1962-05-31 | B97: 2.75 | E97: 3.89
A98: 1962-06-30 | B98: 2.75 | E98: 4
A99: 1962-07-31 | B99: 2.75 | E99: 4.02
A100: 1962-08-31 | B100: 3 | E100: 3.96
A101: 1962-09-30 | B101: 2.75 | E101: 3.94
A102: 1962-10-31 | B102: 3 | E102: 3.92
A103: 1962-11-30 | B103: 2.88 | E103: 3.92
A104: 1962-12-31 | B104: 3 | E104: 3.84
A105: 1963-01-31 | B105: 3 | E105: 3.86
A106: 1963-02-28 | B106: 3 | E106: 3.94
A107: 1963-03-31 | B107: 3 | E107: 3.95
A108: 1963-04-30 | B108: 3 | E108: 3.95
A109: 1963-05-31 | B109: 3 | E109: 3.96
A110: 1963-06-30 | B110: 3 | E110: 4
A111: 1963-07-31 | B111: 3.5 | E111: 3.99
A112: 1963-08-31 | B112: 3.5 | E112: 4.01 | G112: Avg 99-08
A113: 1963-09-30 | B113: 3.5 | E113: 4.07 | G113: Min
A114: 1963-10-31 | B114: 3.5 | E114: 4.13 | G114: Max
A115: 1963-11-30 | B115: 3.5 | E115: 4.08
A116: 1963-12-31 | B116: 3.25 | E116: 4.15 | G116: Avg 99-08
A117: 1964-01-31 | B117: 3.5 | E117: 4.17 | G117: Min
A118: 1964-02-29 | B118: 3.5 | E118: 4.18 | G118: Max
A119: 1964-03-31 | B119: 3.5 | E119: 4.25
A120: 1964-04-30 | B120: 3.5 | E120: 4.22
A121: 1964-05-31 | B121: 3.5 | E121: 4.19
A122: 1964-06-30 | B122: 3.5 | E122: 4.15
A123: 1964-07-31 | B123: 3.5 | E123: 4.2
A124: 1964-08-31 | B124: 3.5 | E124: 4.21
A125: 1964-09-30 | B125: 2.75 | E125: 4.18
A126: 1964-10-31 | B126: 3.5 | E126: 4.16
A127: 1964-11-30 | B127: 4 | E127: 4.19
A128: 1964-12-31 | B128: 4 | E128: 4.19
A129: 1965-01-31 | B129: 4 | E129: 4.19
A130: 1965-02-28 | B130: 4 | E130: 4.22
A131: 1965-03-31 | B131: 4 | E131: 4.2
A132: 1965-04-30 | B132: 4.13 | E132: 4.21
A133: 1965-05-31 | B133: 4.13 | E133: 4.23
A134: 1965-06-30 | B134: 4.13 | E134: 4.2
A135: 1965-07-31 | B135: 4.13 | E135: 4.21
A136: 1965-08-31 | B136: 4 | E136: 4.27
A137: 1965-09-30 | B137: 4.13 | E137: 4.36
A138: 1965-10-31 | B138: 4.13 | E138: 4.41
A139: 1965-11-30 | B139: 4.13 | E139: 4.46
A140: 1965-12-31 | B140: 4.63 | E140: 4.62
A141: 1966-01-31 | B141: 4.5 | E141: 4.65
A142: 1966-02-28 | B142: 4.63 | E142: 5.02
A143: 1966-03-31 | B143: 4.75 | E143: 4.8
A144: 1966-04-30 | B144: 4.63 | E144: 4.79
A145: 1966-05-31 | B145: 4.75 | E145: 4.81
A146: 1966-06-30 | B146: 5.5 | E146: 4.9
A147: 1966-07-31 | B147: 5.75 | E147: 5.05
A148: 1966-08-31 | B148: 4.5 | E148: 5.51
A149: 1966-09-30 | B149: 5.75 | E149: 4.99
A150: 1966-10-31 | B150: 5.75 | E150: 4.97
A151: 1966-11-30 | B151: 5.75 | E151: 5.15
A152: 1966-12-31 | B152: 5 | E152: 4.66
A153: 1967-01-31 | B153: 4 | E153: 4.47
A154: 1967-02-28 | B154: 4.75 | E154: 4.72
A155: 1967-03-31 | B155: 4.5 | E155: 4.52
A156: 1967-04-30 | B156: 4 | E156: 4.78
A157: 1967-05-31 | B157: 4.13 | E157: 4.84
A158: 1967-06-30 | B158: 3.5 | E158: 5.2
A159: 1967-07-31 | B159: 3.75 | E159: 5.18
A160: 1967-08-31 | B160: 4 | E160: 5.27
A161: 1967-09-30 | B161: 3.75 | E161: 5.31
A162: 1967-10-31 | B162: 4.13 | E162: 5.57
A163: 1967-11-30 | B163: 4.5 | E163: 5.67
A164: 1967-12-31 | B164: 4.5 | E164: 5.7
A165: 1968-01-31 | B165: 4.75 | E165: 5.53
A166: 1968-02-29 | B166: 4.75 | E166: 5.56
A167: 1968-03-31 | B167: 5.25 | E167: 5.76
A168: 1968-04-30 | B168: 6.25 | E168: 5.73
A169: 1968-05-31 | B169: 6.13 | E169: 5.95
A170: 1968-06-30 | B170: 5.5 | E170: 5.64
A171: 1968-07-31 | B171: 6 | E171: 5.41
A172: 1968-08-31 | B172: 5.75 | E172: 5.43
A173: 1968-09-30 | B173: 5.5 | E173: 5.46
A174: 1968-10-31 | B174: 6 | E174: 5.62
A175: 1968-11-30 | B175: 6 | E175: 5.78
A176: 1968-12-31 | B176: 4 | E176: 6.2
A177: 1969-01-31 | B177: 6.38 | E177: 6.09
A178: 1969-02-28 | B178: 7 | E178: 6.26
A179: 1969-03-31 | B179: 6.25 | E179: 6.3
A180: 1969-04-30 | B180: 8 | E180: 6.21
A181: 1969-05-31 | B181: 9.38 | E181: 6.56
A182: 1969-06-30 | B182: 7.5 | E182: 6.66
A183: 1969-07-31 | B183: 8.75 | E183: 6.72
A184: 1969-08-31 | B184: 9.75 | E184: 6.83
A185: 1969-09-30 | B185: 8.5 | E185: 7.45
A186: 1969-10-31 | B186: 9 | E186: 7
A187: 1969-11-30 | B187: 9.25 | E187: 7.29
A188: 1969-12-31 | B188: 5 | E188: 8.05
A189: 1970-01-31 | B189: 9.38 | E189: 7.77
A190: 1970-02-28 | B190: 8.5 | E190: 6.9
A191: 1970-03-31 | B191: 7.5 | E191: 6.98
A192: 1970-04-30 | B192: 8.5 | E192: 7.78
A193: 1970-05-31 | B193: 7.88 | E193: 7.95
A194: 1970-06-30 | B194: 5.75 | E194: 7.76
A195: 1970-07-31 | B195: 6.75 | E195: 7.39
A196: 1970-08-31 | B196: 6.5 | E196: 7.49
A197: 1970-09-30 | B197: 5 | E197: 7.3
A198: 1970-10-31 | B198: 6.13 | E198: 7.31
A199: 1970-11-30 | B199: 5.5 | E199: 6.48
A200: 1970-12-31 | B200: 3 | E200: 6.56
... 632 more rows

Sheet Tabelas (hidden)
J2: Dívida / | K2: EBITA / | M2: FC / | N2: EBITA / | O2: Margem | P2: FCO / | Q2: (FCO + Desp. Juros) | R2: EBITA / | S2: CAPEX / | T2: Volatilidade
J3: EBITDA | K3: Desp. Juros | L3: Receita | M3: Dívida Líq | N3: Receita | O3: Operacional | P3: Dívida | Q3: / Desp Juros | R3: Ativos Médios | S3: Depreciação | T3: Receita
I4: Aaa | J4: 1.5 | K4: 16.6 | L4: 125.8 | M4: 0.442 | N4: 0.322 | O4: 0.256 | P4: 0.659 | Q4: 19.3 | R4: 0.168 | S4: 1.4 | T4: 16
I5: Aa | J5: 1.4 | K5: 19.7 | L5: 72.4 | M5: 0.392 | N5: 0.194 | O5: 0.185 | P5: 0.65 | Q5: 21.9 | R5: 0.115 | S5: 1.4 | T5: 10.3
B6: Moody's | C6: S&P | D6: Explicação | E6: Explicación | F6: Explanation | I6: A | J6: 2.1 | K6: 11.7 | L6: 20.2 | M6: 0.323 | N6: 0.148 | O6: 0.133 | P6: 0.392 | Q6: 13.6 | R6: 0.104 | S6: 1.3 | T6: 9.9
B7: Investment grade | D7: Grau de Investimento | E7: Investment grade | F7: Investment grade | I7: Baa | J7: 2.8 | K7: 6.6 | L7: 8 | M7: 0.251 | N7: 0.153 | O7: 0.132 | P7: 0.296 | Q7: 8.5 | R7: 0.089 | S7: 1.3 | T7: 11.7
B8: AAA | C8: AAA | D8: Nivel mínimo de risco de crédito | E8: Nivel mínimo de riesgo crediticio | F8: Minimum level of credit risk | I8: Ba | J8: 3.5 | K8: 3.7 | L8: 3.2 | M8: 0.203 | N8: 0.148 | O8: 0.124 | P8: 0.22 | Q8: 5.4 | R8: 0.089 | S8: 1.3 | T8: 15.6
B9: Aa1/Aa2/Aa3 | C9: AA+/AA/AA- | D9: Nivel muito baixo de risco de crédito | E9: Nivel muy bajo de riesgo crediticio | F9: Very low level of credit risk | I9: B | J9: 5.6 | K9: 1.8 | L9: 0.8 | M9: 0.086 | N9: 0.136 | O9: 0.089 | P9: 0.094 | Q9: 2.4 | R9: 0.071 | S9: 1.1 | T9: 18.5
B10: A1/A2/A3 | C10: A+/A/A- | D10: Nivel baixo de risco de crédito | E10: Nivel bajo de riesgo crediticio | F10: Low level of credit risk | I10: Caa-C | J10: 7.9 | K10: 0.7 | L10: 0.7 | M10: 0.029 | N10: 0.067 | O10: 0.04 | P10: 0.036 | Q10: 1.4 | R10: 0.05 | S10: 0.9 | T10: 13.8
B11: Baa1/Baa2/Baa3 | C11: BBB+/BBB/BBB- | D11: Risco de crédito moderado | E11: Riesgo crediticio moderado | F11: Moderate credit risk | I11: *Tabelamostra os valores medianos de set. de 2019: da Moody's Financial Metrics Key Ratios By Rating And Industry For Global Non-Financial Corporations.
B12: Speculative grade | D12: Grau especulativo | E12: Speculative grade | F12: Speculative grade
B13: Ba1/Ba2/Ba3 | C13: BB+/BB/BB- | D13: Risco de crédito substancial | E13: Riesgo crediticio sustancial | F13: Substantial credit risk
B14: B1/B2/B3 | C14: B+/B/B- | D14: Risco de crédito alto | E14: Riesgo crediticio alto | F14: High credit risk
B15: Caa1/Caa2/Caa3 | C15: CCC+/CCC/CCC- | D15: Risco de crédito muito alto | E15: Riesgo crediticio muy alto | F15: Very high credit risk
B16: Ca | C16: CC | D16: É provável que esteja em situação de inadimplência ou muito perto de estar, mas existe a possibilidade de recuperar o capital. | E16: Es probable que esté en situación de incumplimiento o muy cerca de estarlo, pero existe la posibilidad de recuperar el capital | F16: probably in default or very close to it, but there is a possibility of recovering the capital
B17: C | C17: SD/D | D17: Em default, com poucas possibilidades de recuperação do capital. | E17: En incumplimiento, con pocas posibilidades de recuperar el capital | F17: In default, with little chance of recovering capital
B29: OLD TABLES. EDITION 2012
A31: Table 1 | B31: 10Y Gov. Bond | E31: 2Y Gov. Bond | H31: Spread 10 to 2Y
A32: 2000-11 | B32: USA | C32: GER | D32: SPA | E32: USA | F32: GER | G32: SPA | H32: USA | I32: GER | J32: SPA
A33: Max. | B33: 6.7 | C33: 5.5 | D33: 6.1 | E33: 6.7 | F33: 5.2 | G33: 5.3 | H33: 2.8 | I33: 2.2 | J33: 2.7
A34: Min. | B34: 1.9 | C34: 1.9 | D34: 3.1 | E34: 0.2 | F34: 0.5 | G34: 1.4 | H34: -0.5 | I34: 0 | J34: 0.1
A35: Average | B35: 4.2 | C35: 3.9 | D35: 4.4 | E35: 2.8 | F35: 2.9 | G35: 3.2 | H35: 1.4 | I35: 1.1 | J35: 1.2
A36: 1993-99
A37: Max. | B37: 7.9 | C37: 7.6 | D37: 12.3 | E37: 7.7 | F37: 6.5 | G37: 12.7 | H37: 2.2 | I37: 2.7 | J37: 1.9
A38: Min. | B38: 4.4 | C38: 3.6 | D38: 3.9 | E38: 3.8 | F38: 2.7 | G38: 2.7 | H38: 0 | I38: 0.4 | J38: -1
A39: Average | B39: 6.2 | C39: 5.8 | D39: 8 | E39: 5.5 | F39: 4.5 | G39: 7 | H39: 0.6 | I39: 1.4 | J39: 0.9
A42: Table 2. Standard & Poor’s Rating, 2001-03
A43: Average ratios for every grade, during 2001-03 for US industrial long-term debt
B45: Ratio/ Ratings | C45: EBIT interest coverage | D45: EBITDA interest coverage | E45: FFO / Total debt (%) | F45: FOCF / Total debt | G45: Total debt / EBITDA | H45: Return on capital | I45: Total debt / capital (%)
B46: Description | C46: EBIT / Interests | D46: EBITDA / Interests | E46: CFO / Debt | F46: FCF after tax / Debt | G46: Debt / EBITDA | H46: EBIT / Net assets | I46: Debt / (Debt + Equity)
A47: Investment Grade | B47: AAA | C47: 23.8 | D47: 25.3 | E47: 1.678 | F47: 1.041 | G47: 0.2 | H47: 0.351 | I47: 0.062
B48: AA | C48: 13.6 | D48: 17.1 | E48: 0.775 | F48: 0.411 | G48: 1.1 | H48: 0.269 | I48: 0.348
B49: A | C49: 6.9 | D49: 9.4 | E49: 0.432 | F49: 0.254 | G49: 1.7 | H49: 0.168 | I49: 0.398
B50: BBB | C50: 4.2 | D50: 5.9 | E50: 0.346 | F50: 0.169 | G50: 2.4 | H50: 0.134 | I50: 0.456
A51: Speculative Grade | B51: BB | C51: 2.3 | D51: 3.1 | E51: 0.2 | F51: 0.079 | G51: 3.8 | H51: 0.103 | I51: 0.572
B52: B | C52: 0.9 | D52: 1.6 | E52: 0.101 | F52: 0.026 | G52: 5.6 | H52: 0.067 | I52: 0.742
B53: CCC | C53: 0.4 | D53: 0.9 | E53: 0.029 | F53: -0.009 | G53: 7.4 | H53: 0.023 | I53: 1.012
A56: Tables 3 & 4. Moody's Financial Metrics Key Ratios by Rating and Industry.
A57: For Global Non-Financial Corporations. 2008
B59: Ratio/ Ratings | C59: EBITA/ Average AT | D59: Operating Margin | E59: EBITA Margin | F59: EBITA/ IntExp | G59: (FFO+IntExp)/ IntExp
A60: Investment Grade | B60: Aaa | C60: 0.153 | D60: 0.149 | E60: 0.148 | F60: 17 | G60: 15.5
B61: Aa | C61: 0.156 | D61: 0.17 | E61: 0.175 | F61: 13.7 | G61: 15.5
B62: A | C62: 0.125 | D62: 0.138 | E62: 0.152 | F62: 8.2 | G62: 9.6
B63: Baa | C63: 0.101 | D63: 0.126 | E63: 0.139 | F63: 5.1 | G63: 6.6
A64: Speculative Grade | B64: Ba | C64: 0.096 | D64: 0.122 | E64: 0.134 | F64: 3.4 | G64: 4.7
B65: B | C65: 0.073 | D65: 0.085 | E65: 0.094 | F65: 1.5 | G65: 2.6
B66: Caa-C | C66: 0.02 | D66: 0.016 | E66: 0.024 | F66: 0.3 | G66: 1.5
B70: Ratio/ Ratings | C70: Debt/ EBITDA | D70: Debt/ BookCap | E70: FFO/ NetDebt | F70: RCF/ NetDebt | G70: CAPEX/ DepExp | H70: Rev Vol
A71: Investment Grade | B71: Aaa | C71: 0.9 | D71: 0.227 | E71: 1.173 | F71: 0.963 | G71: 1.6 | H71: 5.6
B72: Aa | C72: 1 | D72: 0.325 | E72: 0.684 | F72: 0.384 | G72: 1.4 | H72: 4.4
B73: A | C73: 1.7 | D73: 0.391 | E73: 0.438 | F73: 0.387 | G73: 1.3 | H73: 5.5
B74: Baa | C74: 2.4 | D74: 0.448 | E74: 0.292 | F74: 0.277 | G74: 1.2 | H74: 7.2
A75: Speculative Grade | B75: Ba | C75: 3.3 | D75: 0.535 | E75: 0.218 | F75: 0.2 | G75: 1.2 | H75: 10.7
B76: B | C76: 5 | D76: 0.702 | E76: 0.12 | F76: 0.117 | G76: 1.1 | H76: 9.2
B77: Caa-C | C77: 6.3 | D77: 0.925 | E77: 0.043 | F77: 0.046 | G77: 0.9 | H77: 11.1
A79: Definitions:
A81: EBITA / Average Assets
A82: EBITA / Average of Current and Previous Year Assets
A83: EBITA / Interest Expense
A84: EBITA / Interest Expense
A85: EBITA Margin
A86: EBITA / Net Revenue
A87: (FFO + Interest Expense) / Interest Expense
A88: (Funds From Operations + Interest Expense) / Interest Expense
A89: FFO / Debt
A90: Funds From Operations / (Short-Term Debt + Long-Term Debt)
A91: RCF / Debt
A92: (FFO - Preferred Dividends - Common Dividends - Minority Dividends) / (Short-Term Debt + Long-Term Debt)
A93: Debt / EBITDA
A94: (Short-Term Debt + Long-Term Debt) / EBITDA
A95: Debt / Book Capitalization
A96: (Short-Term Debt + Long-Term Debt) /
A97: (Short-Term Debt + Long-Term Debt + Deferred Taxes + Minority Interest + Book Equity)
A98: Operating Margin
A99: Operating Profit / Net Revenue
A100: CAPEX / Depreciation Expense
A101: CAPEX / Depreciation Expense
A102: Revenue Volatility
A103: Standard Deviation of Trailing Five Years of Net Revenue Growth
A106: Average ROE and market Return, during 1995-2002, for Telecom Compnaies (in %)
B108: ATT | C108: Bell | D108: BT | E108: Telefónica | F108: Sprint | G108: SBC | H108: Berizon
A109: ROE in % | B109: 9 | C109: 20 | D109: 9 | E109: 5 | F109: 6 | G109: 28 | H109: 24
A110: Market Return in % | B110: 8 | C110: 17 | D110: 8 | E110: 29 | F110: 18 | G110: 6 | H110: 5
A116: OLD VERSION MOODY'S 2006. NOT TO BE INCLUDEN IN THE BOOK. | I116: Summary
I117: Invest. Grade | J117: Speculative
I118: 6.5 | J118: 2.1
A119: Table 3. Moody's ratings July 2006 | I119: 2.4 | J119: 1.4
A120: Median ratios for every grade | I120: 0.436 | J120: 0.668
C121: Investment-Grade | G121: Speculative-Grade | I121: =I120/(1-I120) -> 0.7730496454 | J121: 2.012048193
A122: Ratio | B122: Description | C122: Aaa-Aa | D122: A | E122: Baa | F122: Ba | G122: B | H122: Caa-C | I122: =I119*I121 -> 1.855319149 | J122: 2.81686747
A123: Interest Coverage | B123: (EBIT / Interests) | C123: 16 | D123: 8.6 | E123: 5.4 | F123: 3.7 | G123: 1.9 | H123: 0.7 | I123: 0.284 | J123: 0.127
A124: Asset Coverage | B124: Assets / Debt | C124: 3.7 | D124: 2.4 | E124: 2.3 | F124: 2 | G124: 1.3 | H124: 1 | I124: =I125*I122 -> 0.1168851064 | J124: 0.05352048193
A125: Leverage | B125: Debt / (Debt + Equity) | C125: 0.316 | D125: 0.417 | E125: 0.448 | F125: 0.498 | G125: 0.687 | H125: 0.922 | I125: 0.063 | J125: 0.019
A126: Leverage-1* | B126: Debt / Equity (times) | C126: 0.4619883041 | D126: 0.7152658662 | E126: 0.8115942029 | F126: 0.9920318725 | G126: 2.194888179 | H126: 11.82051282 | I126: 0.078 | J126: 0.021
A127: Leverage-2* | B127: Assets / Equity | C127: 1.709356725 | D127: 1.716638079 | E127: 1.866666667 | F127: 1.984063745 | G127: 2.853354633 | H127: 11.82051282 | I127: 0.046 | J127: 0.039
A128: Cash Flow-to-Debt | B128: CFO / Debt | C128: 0.524 | D128: 0.326 | E128: 0.258 | F128: 0.216 | G128: 0.121 | H128: 0.064 | I128: 6.6 | J128: 5.9
A129: Return on Equity* | B129: Net Income / Equity | C129: 0.1982853801 | D129: 0.1287478559 | E129: 0.09893333333 | F129: 0.08729880478 | G129: 0.04850702875 | H129: -0.2482307692
A130: Return on Assets | B130: Net Income / Assets | C130: 0.116 | D130: 0.075 | E130: 0.053 | F130: 0.044 | G130: 0.017 | H130: -0.021
A131: Profit | B131: Net Income / Sales | C131: 0.118 | D131: 0.09 | E131: 0.067 | F131: 0.05 | G131: 0.02 | H131: -0.026
A132: Liquidity | B132: Cash / Total Assets | C132: 0.078 | D132: 0.047 | E132: 0.04 | F132: 0.043 | G132: 0.039 | H132: 0.033
A133: Revenue Stability | C133: 7.2 | D133: 7.3 | E133: 6.1 | F133: 5.2 | G133: 6.1 | H133: 7.3
A134: * Ratios included and calculated by the author, not by Moody's
A136: Detailed calculation of every ratio
A137: • Interest Coverage:
A138: (EBIT - Interest Capitalized + (1/3)*Rental Expense) / (Interest Expense + (1/3)*Rental Expense +Preferred Dividends/0.65)
A139: • Asset Coverage:
A140: (Total Assets - Goodwill - Intangibles) / Total Debt
A141: • Leverage:
A142: (Total Debt + 8*Rental Expense) / (Total Debt + 8*Rental Expense + Deferred Taxes + Minority Interest + Total Equity)
A143: • Cash Flow/Debt:
A144: (Net After-Tax Income Before X-Items + Depreciations - Dividends) / (Total Debt + 8*Rental Expense)
A145: • Return on Assets:
A146: Net After-Tax Income Before X-Items / 2 Year Average Assets
A147: • Profit:
A148: Net After-Tax Income Before X-Items / Net Sales
A149: • Liquidity:
A150: Cash & Market Securities / Total Assets
A151: • Revenue Stability:
A152: 5 Year Average Net Sales / 5 Year Standard Deviation Net Sales
A153: See example of this ratio ----> | C153: Years | D153: Sales A | E153: Change | F153: Sales B
A154: Sales for companies A (stable) a B (volatile) | C154: 1 | D154: 100 | F154: 100
C155: 2 | D155: 110 | E155: =D155/D154-1 -> 0.1 | F155: 140 | G155: =F155/F154-1 -> 0.4
C156: 3 | D156: 115 | E156: =D156/D155-1 -> 0.04545454545 | F156: 160 | G156: =F156/F155-1 -> 0.1428571429
C157: 4 | D157: 110 | E157: =D157/D156-1 -> -0.04347826087 | F157: 110 | G157: =F157/F156-1 -> -0.3125
C158: 5 | D158: 105 | E158: =D158/D157-1 -> -0.04545454545 | F158: 90 | G158: =F158/F157-1 -> -0.1818181818
C159: Average | D159: =AVERAGE(D154:D158) -> 108 | E159: =AVERAGE(E154:E158) -> 0.01413043478 | F159: =AVERAGE(F154:F158) -> 120 | G159: =AVERAGE(G154:G158) -> 0.01213474026
C160: St. Dev | D160: =STDEV(D154:D159) -> 5.099019514 | E160: =STDEV(E154:E159) -> 0.06169261265 | F160: =STDEV(F154:F159) -> 26.07680962 | G160: =STDEV(G154:G159) -> 0.2786275546
C161: Average / st dev | D161: =D159/D160 -> 21.18054259 | E161: =E159/E160 -> 0.2290458156 | F161: =F159/F160 -> 4.601789933 | G161: =G159/G160 -> 0.04355183132
